{"text_format":"1","workbook":"xlsx","n_sheets":8,"sheets":["VALORES_ZA","VALORES_TE","VALORES_HU","NORMAS","MANEJO DE LAS TABLAS","HUESCA 2025","ZARAGOZA 2025","TERUEL 2025"],"not_rendered":{"charts":0,"images":0,"macros":1,"external_links":0,"defined_names":6,"comments":0,"pivot_tables":0},"unopened":[],"bounds":{"document_bytes":16777216,"sheet_cells":100000,"rows_first":2000,"rows_last":500,"rows_between":2000,"halvings":0,"cell_chars":16384,"cell_head_chars":4096},"cells_cut":0,"cells_raw":0,"read":"whole","date_system":"1900"}

{"sheet":"VALORES_ZA","index":0,"n_rows":294,"n_cols":21,"rows_kept":294,"cut":false,"hidden":true,"merged":[]}
["COD. PROVINCIA","PROVINCIA","Cod PROV+MUN","Orden","MUNICIPIO","AM-F","C","O","V","PD","CR","FR","AR","OR","VR","FE","EP","MB-MT","MM","RI"]
[50,"ZARAGOZA",50001,1,"ABANTO",null,null,null,null,null,null,null,null,null,null,null,null,null,1000,750,1]
[50,"ZARAGOZA",50002,2,"ACERED",null,null,null,null,null,null,null,null,null,null,null,null,null,1000,750]
[50,"ZARAGOZA",50003,3,"AGÓN",null,null,null,null,2500,null,null,null,null,null,null,null,null,750,500]
[50,"ZARAGOZA",50004,4,"AGUARÓN",null,null,null,null,null,null,null,null,null,null,null,null,null,1000,600]
[50,"ZARAGOZA",50005,5,"AGUILÓN",null,null,null,null,null,null,null,null,null,null,null,null,null,1000,750]
[50,"ZARAGOZA",50006,6,"AINZÓN",null,null,null,null,null,null,null,null,null,null,null,null,null,750,500]
[50,"ZARAGOZA",50007,7,"ALADRÉN",null,null,null,null,null,null,null,null,null,null,null,null,null,750,500]
[50,"ZARAGOZA",50008,8,"ALAGÓN",4000,null,3000,null,null,null,15000,12500,null,null,6654.2240000000002,300,300,850,500]
[50,"ZARAGOZA",50009,9,"ALARBA",null,null,null,null,null,null,null,null,null,null,null,null,null,650,400]
[50,"ZARAGOZA",50010,10,"ALBERITE DE SAN JUAN",null,null,null,null,null,null,null,null,null,null,null,null,null,750,500]
[50,"ZARAGOZA",50011,11,"ALBETA",null,null,null,null,null,null,null,null,null,null,null,null,null,750,500]
[50,"ZARAGOZA",50012,12,"ALBORGE",null,null,null,null,null,null,null,null,null,null,null,null,null,null,400]
[50,"ZARAGOZA",50013,13,"ALCALÁ DE EBRO",null,null,null,null,2500,null,15000,null,12500,null,null,250,250,750,500]
[50,"ZARAGOZA",50014,14,"ALCALÁ DE MONCAYO",null,null,null,null,null,null,null,null,null,null,null,null,null,650,400]
[50,"ZARAGOZA",50015,15,"ALCONCHEL DE ARIZA",null,null,null,null,null,null,null,null,null,null,null,null,null,1000,600]
[50,"ZARAGOZA",50016,16,"ALDEHUELA DE LIESTOS",4500,null,null,null,4000,null,null,null,null,null,7684.9160000000002,400,400,1000,750]
[50,"ZARAGOZA",50017,17,"ALFAJARÍN",null,null,null,null,2500,null,18500,12500,null,null,6337.0879999999997,250,250,750,500]
[50,"ZARAGOZA",50018,18,"ALFAMÉN",null,null,null,null,null,null,null,null,null,null,null,null,null,750,500]
[50,"ZARAGOZA",50019,19,"ALFORQUE",null,null,null,4000,null,null,null,null,null,null,null,null,null,null,400]
[50,"ZARAGOZA",50020,20,"ALHAMA DE ARAGÓN",null,null,null,null,null,null,null,null,null,null,null,null,null,750,500]
[50,"ZARAGOZA",50021,21,"ALMOCHUEL",null,null,null,4000,null,null,10000,7500,null,8500,5649.96,null,250,500,400]
[50,"ZARAGOZA",50022,22,"ALMOLDA (LA)",3000,null,3000,4000,null,null,15000,12500,12500,null,6337.0879999999997,250,250,750,500]
[50,"ZARAGOZA",50023,23,"ALMONACID DE LA CUBA",null,null,null,4000,2000,null,10000,7500,null,8500,6019.9519999999993,null,250,650,400]
[50,"ZARAGOZA",50024,24,"ALMONACID DE LA SIERRA",null,null,null,null,null,null,null,null,null,null,null,null,null,850,600]
[50,"ZARAGOZA",50025,25,"ALMUNIA DE DOÑA GODINA (LA)",null,null,null,null,null,null,null,null,null,null,null,null,null,850,600]
[50,"ZARAGOZA",50026,26,"ALPARTIR",null,null,null,null,null,null,null,null,null,null,null,null,null,850,600]
[50,"ZARAGOZA",50027,27,"AMBEL",null,null,null,null,null,null,null,null,null,null,null,null,null,750,500]
[50,"ZARAGOZA",50028,28,"ANENTO",null,null,null,null,null,null,null,null,null,null,null,null,null,1000,750]
[50,"ZARAGOZA",50029,29,"ANIÑÓN",null,null,null,null,null,null,null,null,null,null,null,null,null,650,400]
[50,"ZARAGOZA",50030,30,"AÑÓN DE MONCAYO",null,null,null,null,null,null,null,null,null,null,null,null,null,550,400]
[50,"ZARAGOZA",50031,31,"ARANDA DE MONCAYO",null,null,null,null,null,null,null,null,null,null,null,null,null,500,400]
[50,"ZARAGOZA",50032,32,"ARÁNDIGA",null,null,null,null,null,null,null,null,null,null,null,null,null,650,400]
[50,"ZARAGOZA",50033,33,"ARDISA",null,null,4000,null,null,null,12500,null,8500,null,null,400,400,1000,750]
[50,"ZARAGOZA",50034,34,"ARIZA",null,null,null,null,null,null,null,null,null,null,null,null,null,850,500]
[50,"ZARAGOZA",50035,35,"ARTIEDA",4500,null,null,null,null,null,10000,7500,null,null,7605.6319999999996,null,null,null,750]
[50,"ZARAGOZA",50036,36,"ASÍN",null,null,3500,5000,null,null,10000,7500,7500,null,6971.3600000000006,null,null,null,600]
[50,"ZARAGOZA",50037,37,"ATEA",null,null,null,null,null,null,null,null,null,null,null,null,null,1000,750]
[50,"ZARAGOZA",50038,38,"ATECA",null,null,null,null,null,null,null,null,null,null,null,null,null,750,500]
[50,"ZARAGOZA",50039,39,"AZUARA",null,null,null,4500,2500,null,10000,8500,null,8500,6337.0879999999997,null,250,750,500]
[50,"ZARAGOZA",50040,40,"BADULES",null,null,null,null,null,null,null,null,null,null,null,null,null,1000,600]
[50,"ZARAGOZA",50041,41,"BAGÜÉS",4000,null,null,5000,null,null,10000,7500,null,null,6971.3600000000006,null,null,null,600]
[50,"ZARAGOZA",50042,42,"BALCONCHÁN",null,null,null,null,null,null,null,null,null,null,null,null,null,1000,750]
[50,"ZARAGOZA",50043,43,"BÁRBOLES",null,null,null,null,2000,null,null,null,null,null,null,null,null,650,400]
[50,"ZARAGOZA",50044,44,"BARDALLUR",null,null,null,null,2000,null,null,null,null,null,null,null,null,650,400]
[50,"ZARAGOZA",50045,45,"BELCHITE",null,null,null,4000,null,null,10000,7500,null,8500,5649.96,null,250,500,400]
[50,"ZARAGOZA",50046,46,"BELMONTE DE GRACIÁN",null,null,null,null,null,null,null,null,null,null,null,null,null,650,400]
[50,"ZARAGOZA",50047,47,"BERDEJO",null,null,null,null,null,null,null,null,null,null,null,null,null,600,400]
[50,"ZARAGOZA",50048,48,"BERRUECO",5000,null,4500,null,null,null,null,null,null,null,8054.9079999999994,400,400,1250,800]
[50,"ZARAGOZA",50049,49,"BIEL-FUENCALDERAS",4500,null,null,null,null,null,10000,7500,null,null,7605.6319999999996,null,null,null,750]
[50,"ZARAGOZA",50050,50,"BIJUESCA",null,null,null,null,null,null,null,null,null,null,null,null,null,600,400]
[50,"ZARAGOZA",50051,51,"BIOTA",null,null,3500,5000,null,null,12500,null,10000,9000,null,300,300,1000,600]
[50,"ZARAGOZA",50052,52,"BISIMBRE",null,null,null,null,null,null,null,null,null,null,null,null,null,750,500]
[50,"ZARAGOZA",50053,53,"BOQUIÑENI",null,null,3000,null,null,null,15000,null,12500,12500,null,250,250,750,500]
[50,"ZARAGOZA",50054,54,"BORDALBA",null,null,null,null,null,null,null,null,null,null,null,null,null,1000,600]
[50,"ZARAGOZA",50055,55,"BORJA",null,null,null,null,null,null,null,null,null,null,null,null,null,750,500]
[50,"ZARAGOZA",50056,56,"BOTORRITA",4000,null,3000,4500,null,null,12500,8500,null,10000,6654.2240000000002,300,300,850,500]
[50,"ZARAGOZA",50057,57,"BREA DE ARAGÓN",null,null,null,null,null,null,null,null,null,null,null,null,null,500,400]
[50,"ZARAGOZA",50058,58,"BUBIERCA",null,null,null,null,null,null,null,null,null,null,null,null,null,750,500]
[50,"ZARAGOZA",50059,59,"BUJARALOZ",3000,null,3000,4500,null,null,15000,12500,12500,null,6376.73,250,250,750,500]
[50,"ZARAGOZA",50060,60,"BULBUENTE",null,null,null,null,null,null,null,null,null,null,null,null,null,750,500]
[50,"ZARAGOZA",50061,61,"BURETA",null,null,null,null,null,null,null,null,null,null,null,null,null,750,500]
[50,"ZARAGOZA",50062,62,"BURGO DE EBRO (EL)",null,null,null,null,null,null,18500,12500,null,15000,6971.3600000000006,300,300,1000,600]
[50,"ZARAGOZA",50063,63,"BUSTE (EL)",null,null,null,null,null,null,null,null,null,null,null,null,null,500,400]
[50,"ZARAGOZA",50064,64,"CABAÑAS DE EBRO",null,null,null,null,2850,null,15000,null,12500,null,null,300,300,850,500]
[50,"ZARAGOZA",50065,65,"CABOLAFUENTE",null,null,null,null,null,null,null,null,null,null,null,null,null,1000,600]
[50,"ZARAGOZA",50066,66,"CADRETE",4000,null,null,5000,null,null,18500,12500,null,15000,6971.3600000000006,300,300,1000,600]
[50,"ZARAGOZA",50067,67,"CALATAYUD",null,null,null,null,2500,null,null,null,null,null,null,null,null,750,500]
[50,"ZARAGOZA",50068,68,"CALATORAO",null,null,null,null,null,null,null,null,null,null,null,null,null,750,500]
[50,"ZARAGOZA",50069,69,"CALCENA",null,null,null,null,null,null,null,null,null,null,null,null,null,550,400]
[50,"ZARAGOZA",50070,70,"CALMARZA",null,null,null,null,null,null,null,null,null,null,null,null,null,1000,600]
[50,"ZARAGOZA",50071,71,"CAMPILLO DE ARAGÓN",null,null,null,null,null,null,null,null,null,null,null,null,null,1000,600]
[50,"ZARAGOZA",50072,72,"CARENAS",null,null,null,null,null,null,null,null,null,null,null,null,null,750,500]
[50,"ZARAGOZA",50073,73,"CARIÑENA",null,null,null,null,null,null,null,null,null,null,null,null,null,1000,600]
[50,"ZARAGOZA",50074,74,"CASPE",null,null,null,5000,null,null,null,null,null,9000,null,null,null,null,500]
[50,"ZARAGOZA",50075,75,"CASTEJÓN DE ALARBA",null,null,null,null,null,null,null,null,null,null,null,null,null,650,400]
[50,"ZARAGOZA",50076,76,"CASTEJÓN DE LAS ARMAS",null,null,null,null,null,null,null,null,null,null,null,null,null,750,500]
[50,"ZARAGOZA",50077,77,"CASTEJÓN DE VALDEJASA",null,null,3000,5000,null,null,null,null,null,null,null,300,300,850,500]
[50,"ZARAGOZA",50078,78,"CASTILISCAR",4000,null,3500,5000,null,null,10000,8500,8500,null,6971.3600000000006,null,null,null,600]
[50,"ZARAGOZA",50079,79,"CERVERA DE LA CAÑADA",null,null,null,null,null,null,null,null,null,null,null,null,null,650,400]
[50,"ZARAGOZA",50080,80,"CERVERUELA",null,null,null,null,null,null,null,null,null,null,null,null,null,1000,750]
[50,"ZARAGOZA",50081,81,"CETINA",null,null,null,null,2500,null,null,null,null,null,null,null,null,750,500]
[50,"ZARAGOZA",50082,82,"CIMBALLA",null,null,null,null,null,null,null,null,null,null,null,null,null,1000,600]
[50,"ZARAGOZA",50083,83,"CINCO OLIVAS",null,null,null,4000,null,null,null,null,null,null,null,null,null,null,400]
[50,"ZARAGOZA",50084,84,"CLARÉS DE RIBOTA",null,null,null,null,null,null,null,null,null,null,null,null,null,600,400]
[50,"ZARAGOZA",50085,85,"CODO",null,null,null,null,null,null,10000,7500,null,8500,5649.96,null,250,500,400]
[50,"ZARAGOZA",50086,86,"CODOS",null,null,null,null,null,null,null,null,null,null,null,null,null,750,500]
[50,"ZARAGOZA",50087,87,"CONTAMINA",null,null,null,null,2500,null,null,null,null,null,null,null,null,750,500]
[50,"ZARAGOZA",50088,88,"COSUENDA",null,null,null,null,null,null,null,null,null,null,null,null,null,1000,600]
[50,"ZARAGOZA",50089,89,"CUARTE DE HUERVA",4000,null,null,5000,null,null,18500,12500,null,15000,6971.3600000000006,300,300,1000,600]
[50,"ZARAGOZA",50090,90,"CUBEL",5000,null,null,null,4500,null,null,null,null,null,8424.9,450,450,1250,900]
[50,"ZARAGOZA",50091,91,"CUERLAS (LAS)",5000,null,null,null,4500,null,null,null,null,null,8054.9079999999994,400,400,1250,800]
[50,"ZARAGOZA",50092,92,"CHIPRANA",null,null,null,null,2500,null,null,null,null,null,null,null,null,null,500]
[50,"ZARAGOZA",50093,93,"CHODES",null,null,null,null,null,null,null,null,null,null,null,null,null,650,400]
[50,"ZARAGOZA",50094,94,"DAROCA",null,null,null,null,3000,null,null,null,null,null,null,null,null,1000,600]
[50,"ZARAGOZA",50095,95,"EJEA DE LOS CABALLEROS",null,null,3500,5000,3000,null,15000,null,12500,12500,null,300,300,1000,600]
[50,"ZARAGOZA",50096,96,"EMBID DE ARIZA",null,null,null,null,null,null,null,null,null,null,null,null,null,750,500]
[50,"ZARAGOZA",50098,97,"ENCINACORBA",null,null,null,null,null,null,null,null,null,null,null,null,null,1000,600]
[50,"ZARAGOZA",50099,98,"ÉPILA",null,null,null,null,2500,null,null,null,null,null,null,null,null,750,500]
[50,"ZARAGOZA",50100,99,"ERLA",null,null,null,5000,null,null,12500,null,10000,9000,null,300,300,1000,600]
[50,"ZARAGOZA",50101,100,"ESCATRÓN",null,null,null,4000,null,null,15000,8500,null,9000,5848.17,null,250,600,400]
[50,"ZARAGOZA",50103,101,"FABARA",null,null,null,5000,null,null,null,null,null,9000,null,null,null,null,500]
[50,"ZARAGOZA",50105,102,"FARLETE",3000,null,null,4500,null,null,null,null,null,null,6337.0879999999997,250,250,750,500]
[50,"ZARAGOZA",50106,103,"FAYÓN",null,null,null,5000,null,null,null,null,null,null,null,null,null,null,500]
[50,"ZARAGOZA",50107,104,"FAYOS (LOS)",null,null,null,null,null,null,null,null,null,null,null,null,null,550,400]
[50,"ZARAGOZA",50108,105,"FIGUERUELAS",4000,null,3000,null,null,null,15000,12500,null,12500,6654.2240000000002,300,300,850,500]
[50,"ZARAGOZA",50109,106,"FOMBUENA",null,null,null,null,null,null,null,null,null,null,null,null,null,1000,600]
[50,"ZARAGOZA",50110,107,"FRAGO (EL)",4000,null,3500,null,null,null,10000,7500,null,null,6971.3600000000006,null,null,null,600]
[50,"ZARAGOZA",50111,108,"FRASNO (EL)",null,null,null,null,null,null,null,null,null,null,null,null,null,650,400]
[50,"ZARAGOZA",50112,109,"FRÉSCANO",null,null,null,null,null,null,null,null,null,null,null,null,null,750,500]
[50,"ZARAGOZA",50114,110,"FUENDEJALÓN",null,null,null,null,null,null,null,null,null,null,null,null,null,750,500]
[50,"ZARAGOZA",50115,111,"FUENDETODOS",null,null,null,4000,null,null,10000,7500,null,null,6019.9519999999993,null,250,650,400]
[50,"ZARAGOZA",50116,112,"FUENTES DE EBRO",2500,null,3000,4000,2000,null,15000,12500,null,15000,5848.17,250,250,600,400]
[50,"ZARAGOZA",50117,113,"FUENTES DE JILOCA",null,null,null,null,2000,null,null,null,null,null,null,null,null,650,400]
[50,"ZARAGOZA",50118,114,"GALLOCANTA",5000,null,null,null,null,null,null,null,null,null,8054.9079999999994,400,400,1250,800]
[50,"ZARAGOZA",50119,115,"GALLUR",null,null,null,4000,null,null,15000,null,12500,12500,null,250,250,750,500]
[50,"ZARAGOZA",50120,116,"GELSA",3000,null,3000,4000,null,null,15000,12500,null,null,6046.38,250,250,650,400]
[50,"ZARAGOZA",50121,117,"GODOJOS",null,null,null,null,null,null,null,null,null,null,null,null,null,750,500]
[50,"ZARAGOZA",50122,118,"GOTOR",null,null,null,null,null,null,null,null,null,null,null,null,null,500,400]
[50,"ZARAGOZA",50123,119,"GRISEL",null,null,null,null,null,null,null,null,null,null,null,null,null,550,400]
[50,"ZARAGOZA",50124,120,"GRISÉN",null,null,null,null,null,null,15000,12500,null,12500,6337.0879999999997,250,250,750,500]
[50,"ZARAGOZA",50125,121,"HERRERA DE LOS NAVARROS",null,null,null,null,null,null,null,null,null,null,null,null,null,1000,600]
[50,"ZARAGOZA",50126,122,"IBDES",null,null,null,null,null,null,null,null,null,null,null,null,null,750,500]
[50,"ZARAGOZA",50127,123,"ILLUECA",null,null,null,null,null,null,null,null,null,null,null,null,null,500,400]
[50,"ZARAGOZA",50129,124,"ISUERRE",4000,null,null,5000,null,null,10000,7500,null,null,6971.3600000000006,null,null,null,600]
[50,"ZARAGOZA",50130,125,"JARABA",null,null,null,null,null,null,null,null,null,null,null,null,null,750,500]
[50,"ZARAGOZA",50131,126,"JARQUE",null,null,null,null,null,null,null,null,null,null,null,null,null,500,400]
[50,"ZARAGOZA",50132,127,"JAULÍN",null,null,null,4000,null,null,null,null,null,null,6019.9519999999993,null,250,650,400]
[50,"ZARAGOZA",50133,128,"JOYOSA (LA)",null,null,null,null,3000,null,15000,12500,null,12500,6971.3600000000006,300,300,1000,600]
[50,"ZARAGOZA",50134,129,"LAGATA",null,null,null,4000,null,null,10000,7500,null,8500,6019.9519999999993,null,250,650,400]
[50,"ZARAGOZA",50135,130,"LANGA DEL CASTILLO",null,null,null,null,null,null,null,null,null,null,null,null,null,1250,800]
[50,"ZARAGOZA",50136,131,"LAYANA",4000,null,null,null,null,null,10000,7500,null,null,6971.3600000000006,null,null,null,600]
[50,"ZARAGOZA",50137,132,"LÉCERA",null,null,null,5000,null,null,10000,7500,null,10000,6019.9519999999993,null,250,650,400]
[50,"ZARAGOZA",50138,133,"LECIÑENA",3000,null,3000,4500,null,null,null,null,null,null,6337.0879999999997,250,250,750,500]
[50,"ZARAGOZA",50139,134,"LECHÓN",null,null,null,null,null,null,null,null,null,null,null,null,null,1000,750]
[50,"ZARAGOZA",50140,135,"LETUX",null,null,null,4000,2000,null,10000,7500,null,8500,6019.9519999999993,null,250,650,400]
[50,"ZARAGOZA",50141,136,"LITAGO",null,null,null,null,null,null,null,null,null,null,null,null,null,550,400]
[50,"ZARAGOZA",50142,137,"LITUÉNIGO",null,null,null,null,null,null,null,null,null,null,null,null,null,550,400]
[50,"ZARAGOZA",50143,138,"LOBERA DE ONSELLA",4000,null,null,5000,null,null,10000,7500,null,null,6971.3600000000006,null,null,null,600]
[50,"ZARAGOZA",50144,139,"LONGARES",null,null,null,null,null,null,null,null,null,null,null,null,null,1000,600]
[50,"ZARAGOZA",50145,140,"LONGÁS",null,null,null,null,null,null,10000,7500,null,null,6971.3600000000006,null,null,null,600]
[50,"ZARAGOZA",50147,141,"LUCENA DE JALÓN",null,null,null,null,null,null,null,null,null,null,null,null,null,650,400]
[50,"ZARAGOZA",50148,142,"LUCENI",null,null,3000,null,null,null,15000,null,12500,12500,null,250,250,750,500]
[50,"ZARAGOZA",50149,143,"LUESIA",4000,null,3500,5000,null,null,10000,7500,null,null,6971.3600000000006,null,null,null,600]
[50,"ZARAGOZA",50150,144,"LUESMA",null,null,null,null,null,null,null,null,null,null,null,null,null,750,500]
[50,"ZARAGOZA",50151,145,"LUMPIAQUE",null,null,null,null,null,null,null,null,null,null,null,null,null,650,400]
[50,"ZARAGOZA",50152,146,"LUNA",null,null,3500,5000,null,null,12500,null,10000,9000,null,300,300,1000,600]
[50,"ZARAGOZA",50153,147,"MAELLA",null,null,null,5000,null,null,null,null,null,9000,null,null,null,null,500]
[50,"ZARAGOZA",50154,148,"MAGALLÓN",null,null,null,null,null,null,null,null,null,null,null,null,null,750,500]
[50,"ZARAGOZA",50155,149,"MAINAR",null,null,null,null,null,null,null,null,null,null,null,null,null,1250,800]
[50,"ZARAGOZA",50156,150,"MALANQUILLA",null,null,null,null,null,null,null,null,null,null,null,null,null,600,400]
[50,"ZARAGOZA",50157,151,"MALEJÁN",null,null,null,null,null,null,null,null,null,null,null,null,null,750,500]
[50,"ZARAGOZA",50158,152,"MALÓN",null,null,null,null,null,null,null,null,null,null,null,null,null,750,500]
[50,"ZARAGOZA",50160,153,"MALUENDA",null,null,null,null,null,null,null,null,null,null,null,null,null,650,400]
[50,"ZARAGOZA",50161,154,"MALLÉN",null,null,3000,5000,null,null,15000,null,12500,12500,null,250,250,750,500]
[50,"ZARAGOZA",50162,155,"MANCHONES",null,null,null,null,null,null,null,null,null,null,null,null,null,850,600]
[50,"ZARAGOZA",50163,156,"MARA",null,null,null,null,null,null,null,null,null,null,null,null,null,650,400]
[50,"ZARAGOZA",50164,157,"MARÍA DE HUERVA",4000,null,3500,5000,3000,null,15000,12500,null,15000,6971.3600000000006,300,300,1000,600]
[50,"ZARAGOZA",50165,158,"MEDIANA DE ARAGÓN",2500,null,3000,4000,2000,null,12500,12500,null,12500,5848.17,250,250,600,400]
[50,"ZARAGOZA",50166,159,"MEQUINENZA",null,null,null,5000,null,null,null,null,null,null,null,null,null,null,500]
[50,"ZARAGOZA",50167,160,"MESONES DE ISUELA",null,null,null,null,null,null,null,null,null,null,null,null,null,650,400]
[50,"ZARAGOZA",50168,161,"MEZALOCHA",null,null,null,null,null,null,null,null,null,null,null,null,null,1000,600]
[50,"ZARAGOZA",50169,162,"MIANOS",4500,null,null,5000,null,null,10000,7500,null,null,7605.6319999999996,null,null,null,750]
[50,"ZARAGOZA",50170,163,"MIEDES DE ARAGÓN",null,null,null,null,null,null,null,null,null,null,null,null,null,650,400]
[50,"ZARAGOZA",50171,164,"MONEGRILLO",3000,null,3000,null,null,null,null,null,null,null,6337.0879999999997,250,250,750,500]
[50,"ZARAGOZA",50172,165,"MONEVA",null,null,null,4000,null,null,10000,7500,null,null,6019.9519999999993,null,250,650,400]
[50,"ZARAGOZA",50173,166,"MONREAL DE ARIZA",null,null,null,null,2850,null,null,null,null,null,null,null,null,850,500]
[50,"ZARAGOZA",50174,167,"MONTERDE",null,null,null,null,null,null,null,null,null,null,null,null,null,750,500]
[50,"ZARAGOZA",50175,168,"MONTÓN",null,null,null,null,2000,null,null,null,null,null,null,null,null,650,400]
[50,"ZARAGOZA",50176,169,"MORATA DE JALÓN",null,null,null,null,null,null,null,null,null,null,null,null,null,650,400]
[50,"ZARAGOZA",50177,170,"MORATA DE JILOCA",null,null,null,null,null,null,null,null,null,null,null,null,null,650,400]
[50,"ZARAGOZA",50178,171,"MORÉS",null,null,null,null,null,null,null,null,null,null,null,null,null,500,400]
[50,"ZARAGOZA",50179,172,"MOROS",null,null,null,null,null,null,null,null,null,null,null,null,null,650,400]
[50,"ZARAGOZA",50180,173,"MOYUELA",null,null,null,4000,null,null,10000,7500,null,8500,6019.9519999999993,null,250,650,400]
[50,"ZARAGOZA",50181,174,"MOZOTA",3500,null,3000,4500,null,null,10000,8500,null,10000,6654.2240000000002,300,300,850,500]
[50,"ZARAGOZA",50182,175,"MUEL",null,null,null,null,null,null,null,null,null,null,null,null,null,850,600]
[50,"ZARAGOZA",50183,176,"MUELA (LA)",null,null,null,null,null,null,null,null,null,null,null,null,null,750,500]
[50,"ZARAGOZA",50184,177,"MUNÉBREGA",null,null,null,null,null,null,null,null,null,null,null,null,null,650,400]
[50,"ZARAGOZA",50185,178,"MURERO",null,null,null,null,null,null,null,null,null,null,null,null,null,850,600]
[50,"ZARAGOZA",50186,179,"MURILLO DE GÁLLEGO",4500,null,4000,5000,null,null,10000,8500,null,null,7605.6319999999996,null,400,null,750]
[50,"ZARAGOZA",50187,180,"NAVARDÚN",null,null,null,5000,null,null,10000,7500,null,null,7605.6319999999996,null,400,null,750]
[50,"ZARAGOZA",50188,181,"NIGÜELLA",null,null,null,null,null,null,null,null,null,null,null,null,null,650,400]
[50,"ZARAGOZA",50189,182,"NOMBREVILLA",null,null,null,null,null,null,null,null,null,null,null,null,null,1000,750]
[50,"ZARAGOZA",50190,183,"NONASPE",null,null,null,5000,null,null,null,null,null,9000,null,null,null,null,500]
[50,"ZARAGOZA",50191,184,"NOVALLAS",null,null,null,null,null,null,null,null,null,null,null,null,null,750,500]
[50,"ZARAGOZA",50192,185,"NOVILLAS",null,null,3000,4000,null,null,12500,null,12500,12500,null,250,250,750,500]
[50,"ZARAGOZA",50193,186,"NUÉVALOS",null,null,null,null,null,null,null,null,null,null,null,null,null,750,500]
[50,"ZARAGOZA",50194,187,"NUEZ DE EBRO",null,null,null,null,2500,null,15000,12500,null,null,6337.0879999999997,250,250,750,500]
[50,"ZARAGOZA",50195,188,"OLVÉS",null,null,null,null,null,null,null,null,null,null,null,null,null,650,400]
[50,"ZARAGOZA",50196,189,"ORCAJO",null,null,null,null,null,null,null,null,null,null,null,null,null,1000,750]
[50,"ZARAGOZA",50197,190,"ORERA",null,null,null,null,null,null,null,null,null,null,null,null,null,650,400]
[50,"ZARAGOZA",50198,191,"ORÉS",4000,null,3500,5000,null,null,10000,7500,null,null,6971.3600000000006,null,null,null,600]
[50,"ZARAGOZA",50199,192,"OSEJA",null,null,null,null,null,null,null,null,null,null,null,null,null,550,400]
[50,"ZARAGOZA",50200,193,"OSERA DE EBRO",3000,null,3000,null,null,null,15000,12500,null,null,6337.0879999999997,250,250,750,500]
[50,"ZARAGOZA",50201,194,"PANIZA",null,null,null,null,null,null,null,null,null,null,null,null,null,1000,600]
[50,"ZARAGOZA",50202,195,"PARACUELLOS DE JILOCA",null,null,null,null,null,null,null,null,null,null,null,null,null,650,400]
[50,"ZARAGOZA",50203,196,"PARACUELLOS DE LA RIBERA",null,null,null,null,null,null,null,null,null,null,null,null,null,500,400]
[50,"ZARAGOZA",50204,197,"PASTRIZ",null,null,null,null,3000,null,18500,12500,null,null,6971.3600000000006,300,300,1000,600]
[50,"ZARAGOZA",50205,198,"PEDROLA",null,null,3000,4500,2850,null,15000,null,12500,12500,null,300,300,850,500]
[50,"ZARAGOZA",50206,199,"PEDROSAS (LAS)",null,null,3500,5000,null,null,null,null,null,null,null,300,300,1000,600]
[50,"ZARAGOZA",50207,200,"PERDIGUERA",3500,null,3000,4500,null,null,null,null,null,null,6654.2240000000002,300,300,850,500]
[50,"ZARAGOZA",50208,201,"PIEDRATAJADA",null,null,3500,5000,null,null,12500,null,null,10000,null,300,300,1000,600]
[50,"ZARAGOZA",50209,202,"PINA DE EBRO",null,null,null,4000,2000,null,15000,12500,null,12500,6019.9519999999993,250,250,650,400]
[50,"ZARAGOZA",50210,203,"PINSEQUE",4000,null,3000,null,null,null,15000,12500,null,null,6654.2240000000002,300,300,850,500]
[50,"ZARAGOZA",50211,204,"PINTANOS (LOS)",4000,null,null,5000,null,null,10000,7500,null,null,6971.3600000000006,null,null,null,600]
[50,"ZARAGOZA",50212,205,"PLASENCIA DE JALÓN",null,null,null,null,null,null,null,null,null,null,null,null,null,650,400]
[50,"ZARAGOZA",50213,206,"PLEITAS",null,null,null,null,null,null,null,null,null,null,null,null,null,750,500]
[50,"ZARAGOZA",50214,207,"PLENAS",null,null,null,4000,null,null,10000,7500,null,null,6019.9519999999993,null,250,650,400]
[50,"ZARAGOZA",50215,208,"POMER",null,null,null,null,null,null,null,null,null,null,null,null,null,550,400]
[50,"ZARAGOZA",50216,209,"POZUEL DE ARIZA",null,null,null,null,null,null,null,null,null,null,null,null,null,750,500]
[50,"ZARAGOZA",50217,210,"POZUELO DE ARAGÓN",null,null,null,null,null,null,null,null,null,null,null,null,null,750,500]
[50,"ZARAGOZA",50218,211,"PRADILLA DE EBRO",null,null,null,null,null,null,15000,null,12500,12500,null,250,250,750,500]
[50,"ZARAGOZA",50219,212,"PUEBLA DE ALBORTÓN",null,null,null,4000,null,null,null,null,null,null,6019.9519999999993,null,250,650,400]
[50,"ZARAGOZA",50220,213,"PUEBLA DE ALFINDÉN (LA)",3500,null,null,4500,null,null,18500,12500,null,15000,6337.0879999999997,250,250,750,500]
[50,"ZARAGOZA",50221,214,"PUENDELUNA",null,null,3500,5000,null,null,10000,null,8500,null,null,300,300,1000,600]
[50,"ZARAGOZA",50223,215,"PURUJOSA",null,null,null,null,null,null,null,null,null,null,null,null,null,550,400]
[50,"ZARAGOZA",50224,216,"QUINTO",null,null,3000,4000,null,null,15000,12500,null,null,5848.17,250,250,600,400]
[50,"ZARAGOZA",50225,217,"REMOLINOS",null,null,null,null,null,null,15000,null,12500,12500,null,250,250,750,500]
[50,"ZARAGOZA",50226,218,"RETASCÓN",null,null,null,null,null,null,null,null,null,null,null,null,null,1000,750]
[50,"ZARAGOZA",50227,219,"RICLA",null,null,null,null,null,null,null,null,null,null,null,null,null,750,500]
[50,"ZARAGOZA",50229,220,"ROMANOS",null,null,null,null,null,null,null,null,null,null,null,null,null,1000,750]
[50,"ZARAGOZA",50230,221,"RUEDA DE JALÓN",null,null,null,null,2000,null,null,null,null,null,null,null,null,650,400]
[50,"ZARAGOZA",50231,222,"RUESCA",null,null,null,null,null,null,null,null,null,null,null,null,null,650,400]
[50,"ZARAGOZA",50233,223,"SÁDABA",null,null,3500,5000,null,null,12500,null,10000,9000,null,300,300,1000,600]
[50,"ZARAGOZA",50234,224,"SALILLAS DE JALÓN",null,null,null,null,null,null,null,null,null,null,null,null,null,600,400]
[50,"ZARAGOZA",50235,225,"SALVATIERRA DE ESCA",4500,null,null,5500,null,null,10000,7500,null,null,7605.6319999999996,null,null,null,750]
[50,"ZARAGOZA",50236,226,"SAMPER DEL SALZ",null,null,null,4000,null,null,10000,7500,null,8500,6019.9519999999993,null,250,650,400]
[50,"ZARAGOZA",50237,227,"SAN MARTÍN DE LA VIRGEN DE MO",null,null,null,null,null,null,null,null,null,null,null,null,null,550,400]
[50,"ZARAGOZA",50238,228,"SAN MATEO DE GÁLLEGO",4000,null,3000,4500,2750,null,15000,12500,null,null,6654.2240000000002,300,300,850,500]
[50,"ZARAGOZA",50239,229,"SANTA CRUZ DE GRÍO",null,null,null,null,null,null,null,null,null,null,null,null,null,650,400]
[50,"ZARAGOZA",50240,230,"SANTA CRUZ DE MONCAYO",null,null,null,null,null,null,null,null,null,null,null,null,null,550,400]
[50,"ZARAGOZA",50241,231,"SANTA EULALIA DE GÁLLEGO",4500,null,4000,5000,null,null,10000,8500,8500,null,7605.6319999999996,null,null,null,750]
[50,"ZARAGOZA",50242,232,"SANTED",5000,null,null,null,null,null,null,null,null,null,8054.9079999999994,400,400,1250,800]
[50,"ZARAGOZA",50243,233,"SÁSTAGO",null,null,null,null,null,null,null,null,null,null,null,null,null,null,400]
[50,"ZARAGOZA",50244,234,"SABIÑÁN",null,null,null,null,null,null,null,null,null,null,null,null,null,500,400]
[50,"ZARAGOZA",50245,235,"SEDILES",null,null,null,null,null,null,null,null,null,null,null,null,null,650,400]
[50,"ZARAGOZA",50246,236,"SESTRICA",null,null,null,null,null,null,null,null,null,null,null,null,null,650,400]
[50,"ZARAGOZA",50247,237,"SIERRA DE LUNA",null,null,3500,5000,null,null,12500,null,null,9000,null,300,300,1000,600]
[50,"ZARAGOZA",50248,238,"SIGÜÉS",4500,null,4000,5500,null,null,10000,7500,null,null,7605.6319999999996,null,null,null,750]
[50,"ZARAGOZA",50249,239,"SISAMÓN",null,null,null,null,null,null,null,null,null,null,null,null,null,1000,600]
[50,"ZARAGOZA",50250,240,"SOBRADIEL",null,null,null,null,3000,null,15000,12500,null,null,7288.496000000001,300,300,1000,750]
[50,"ZARAGOZA",50251,241,"SOS DEL REY CATÓLICO",4500,null,4000,5500,null,null,10000,8500,8500,null,7605.6319999999996,null,null,null,750]
[50,"ZARAGOZA",50252,242,"TABUENCA",null,null,null,null,null,null,null,null,null,null,null,null,null,750,500]
[50,"ZARAGOZA",50253,243,"TALAMANTES",null,null,null,null,null,null,null,null,null,null,null,null,null,750,500]
[50,"ZARAGOZA",50254,244,"TARAZONA",null,null,null,null,null,null,null,null,null,null,null,null,null,750,500]
[50,"ZARAGOZA",50255,245,"TAUSTE",null,null,3000,4500,null,null,15000,null,12500,12500,null,250,250,750,500]
[50,"ZARAGOZA",50256,246,"TERRER",null,null,null,null,null,null,null,null,null,null,null,null,null,650,400]
[50,"ZARAGOZA",50257,247,"TIERGA",null,null,null,null,null,null,null,null,null,null,null,null,null,650,400]
[50,"ZARAGOZA",50259,248,"TOBED",null,null,null,null,null,null,null,null,null,null,null,null,null,650,400]
[50,"ZARAGOZA",50260,249,"TORRALBA DE LOS FRAILES",5000,null,null,null,null,null,null,null,null,null,8424.9,450,450,1250,900]
[50,"ZARAGOZA",50261,250,"TORRALBA DE RIBOTA",null,null,null,null,null,null,null,null,null,null,null,null,null,650,400]
[50,"ZARAGOZA",50262,251,"TORRALBILLA",null,null,null,null,null,null,null,null,null,null,null,null,null,1250,800]
[50,"ZARAGOZA",50263,252,"TORREHERMOSA",null,null,null,null,null,null,null,null,null,null,null,null,null,1000,600]
[50,"ZARAGOZA",50264,253,"TORRELAPAJA",null,null,null,null,null,null,null,null,null,null,null,null,null,600,400]
[50,"ZARAGOZA",50265,254,"TORRELLAS",null,null,null,null,null,null,null,null,null,null,null,null,null,500,400]
[50,"ZARAGOZA",50266,255,"TORRES DE BERRELLÉN",null,null,null,null,null,null,15000,12500,null,15000,6971.3600000000006,300,300,1000,600]
[50,"ZARAGOZA",50267,256,"TORRIJO DE LA CAÑADA",null,null,null,null,null,null,null,null,null,null,null,null,null,600,400]
[50,"ZARAGOZA",50268,257,"TOSOS",null,null,null,null,null,null,null,null,null,null,null,null,null,1000,600]
[50,"ZARAGOZA",50269,258,"TRASMOZ",null,null,null,null,null,null,null,null,null,null,null,null,null,550,400]
[50,"ZARAGOZA",50270,259,"TRASOBARES",null,null,null,null,null,null,null,null,null,null,null,null,null,650,400]
[50,"ZARAGOZA",50271,260,"UNCASTILLO",4500,null,4000,5000,null,null,10000,8500,null,null,7605.6319999999996,null,null,null,750]
[50,"ZARAGOZA",50272,261,"UNDUÉS DE LERDA",4500,null,4000,null,null,null,10000,7500,null,null,7605.6319999999996,null,null,null,750]
[50,"ZARAGOZA",50274,262,"URREA DE JALÓN",null,null,null,null,2000,null,null,null,null,null,null,null,null,650,400]
[50,"ZARAGOZA",50275,263,"URRIÉS",4500,null,4000,5000,null,null,10000,7500,null,null,7605.6319999999996,null,null,null,750]
[50,"ZARAGOZA",50276,264,"USED",5000,null,null,null,null,null,null,null,null,null,8424.9,450,450,1250,900]
[50,"ZARAGOZA",50277,265,"UTEBO",null,null,null,null,null,null,18500,12500,null,null,6971.3600000000006,300,300,1000,600]
[50,"ZARAGOZA",50278,266,"VALDEHORNA",null,null,null,null,null,null,null,null,null,null,null,null,null,1000,600]
[50,"ZARAGOZA",50279,267,"VAL DE SAN MARTÍN",null,null,null,null,null,null,null,null,null,null,null,null,null,850,600]
[50,"ZARAGOZA",50280,268,"VALMADRID",null,null,null,4000,null,null,null,null,null,null,6019.9519999999993,null,250,650,400]
[50,"ZARAGOZA",50281,269,"VALPALMAS",null,null,3500,5000,null,null,null,null,null,null,null,300,300,1000,600]
[50,"ZARAGOZA",50282,270,"VALTORRES",null,null,null,null,null,null,null,null,null,null,null,null,null,650,400]
[50,"ZARAGOZA",50283,271,"VELILLA DE EBRO",3000,null,3000,null,2000,null,15000,12500,null,null,6046.38,250,250,650,400]
[50,"ZARAGOZA",50284,272,"VELILLA DE JILOCA",null,null,null,null,2000,null,null,null,null,null,null,null,null,650,400]
[50,"ZARAGOZA",50285,273,"VERA DE MONCAYO",null,null,null,null,null,null,null,null,null,null,null,null,null,650,400]
[50,"ZARAGOZA",50286,274,"VIERLAS",null,null,null,null,null,null,null,null,null,null,null,null,null,750,500]
[50,"ZARAGOZA",50287,275,"VILUEÑA (LA)",null,null,null,null,null,null,null,null,null,null,null,null,null,650,400]
[50,"ZARAGOZA",50288,276,"VILLADOZ",null,null,null,null,null,null,null,null,null,null,null,null,null,1250,800]
[50,"ZARAGOZA",50289,277,"VILLAFELICHE",null,null,null,null,null,null,null,null,null,null,null,null,null,850,600]
[50,"ZARAGOZA",50290,278,"VILLAFRANCA DE EBRO",null,null,null,null,null,null,15000,12500,null,null,6337.0879999999997,250,250,750,500]
[50,"ZARAGOZA",50291,279,"VILLALBA DE PEREJIL",null,null,null,null,null,null,null,null,null,null,null,null,null,650,400]
[50,"ZARAGOZA",50292,280,"VILLALENGUA",null,null,null,null,null,null,null,null,null,null,null,null,null,650,400]
[50,"ZARAGOZA",50293,281,"VILLANUEVA DE GÁLLEGO",4000,null,3500,5000,null,null,18500,12500,null,15000,6971.3600000000006,300,300,1000,600]
[50,"ZARAGOZA",50294,282,"VILLANUEVA DE JILOCA",null,null,null,null,null,null,null,null,null,null,null,null,null,850,600]
[50,"ZARAGOZA",50295,283,"VILLANUEVA DE HUERVA",null,null,null,null,null,null,null,null,null,null,null,null,null,1000,600]
[50,"ZARAGOZA",50296,284,"VILLAR DE LOS NAVARROS",null,null,null,null,null,null,null,null,null,null,null,null,null,1000,600]
[50,"ZARAGOZA",50297,285,"VILLARREAL DE HUERVA",null,null,null,null,null,null,null,null,null,null,null,null,null,1250,800]
[50,"ZARAGOZA",50298,286,"VILLARROYA DE LA SIERRA",null,null,null,null,null,null,null,null,null,null,null,null,null,650,400]
[50,"ZARAGOZA",50299,287,"VILLARROYA DEL CAMPO",null,null,null,null,null,null,null,null,null,null,null,null,null,1250,800]
[50,"ZARAGOZA",50300,288,"VISTABELLA",null,null,null,null,null,null,null,null,null,null,null,null,null,750,500]
[50,"ZARAGOZA",50302,289,"ZAIDA (LA)",null,null,null,null,null,null,15000,12500,null,null,5848.17,250,250,600,400]
[50,"ZARAGOZA",50304,290,"ZUERA",4000,null,3000,4500,null,null,15000,12500,null,15000,6654.2240000000002,300,300,850,500]
[50,"ZARAGOZA",50305,291,"MARRACOS",null,null,3500,5000,null,null,12500,null,null,10000,null,300,300,1000,600]
[50,"ZARAGOZA",50306,292,"VILLAMAYOR DE GÁLLEGO ",4000,null,3500,5000,null,null,15000,12500,null,15000,6971.3600000000006,300,300,1000,600]
[50,"ZARAGOZA",50900,293,"ZARAGOZA",4000,null,3500,4500,3000,null,18500,12500,null,15000,6971.3600000000006,300,300,1000,600]

{"sheet":"VALORES_TE","index":1,"n_rows":240,"n_cols":16,"rows_kept":240,"cut":false,"hidden":true,"merged":[]}
[null,"      V A L O R E S      ","Provincia de Teruel"]
[null,2025,"Precios aplicables a fincas rústicas en  Euros por Hectárea"]
[null,null,"Secanos",null,null,null,"Regadíos",null,null,null,null,"No cultivados"]
[null,"PUEBLOS","AM-F","C","O","V","CR","FR","AR","OR","VR","EP","MT-MB","MM","RI"]
[1,"ABABUJ",null,null,null,null,null,null,null,null,null,null,null,null,580,1]
[2,"ABEJUELA",2150,null,null,null,null,null,null,null,null,null,null,null,500]
[3,"AGUATÓN",null,null,null,null,null,null,null,null,null,null,null,null,530]
[4,"AGUAVIVA",null,null,null,2500,null,null,null,null,null,null,null,null,550]
[5,"AGUILAR DEL ALFAMBRA",null,null,null,null,null,null,null,null,null,null,null,null,580]
[6,"ALACÓN",null,null,null,2250,null,null,null,9900,6500,null,null,null,580]
[7,"ALBA DEL CAMPO",2500,null,null,null,null,null,null,null,null,null,null,850,580]
[8,"ALBALATE DEL ARZOBISPO",null,null,null,2500,null,9500,10500,null,10000,null,null,850,600]
[9,"ALBARRACÍN",null,null,null,null,null,6700,null,null,null,null,null,1350,600]
[10,"ALBENTOSA",2500,null,null,null,null,null,null,null,null,null,null,null,550]
[11,"ALCAINE",null,null,null,2250,null,6200,null,8600,null,null,null,null,600]
[12,"ALCALÁ DE LA SELVA",null,null,null,null,null,null,null,null,null,null,null,null,580]
[13,"ALCAÑIZ",null,null,null,3100,null,null,null,null,10500,null,null,null,600]
[14,"ALCORISA",null,null,null,2900,null,null,null,null,9500,null,null,null,550]
[15,"ALFAMBRA",null,null,null,null,null,null,null,null,null,null,null,null,550]
[16,"ALIAGA",null,null,null,null,null,null,null,null,null,null,null,null,580]
[17,"ALMOHAJA",null,null,null,null,null,null,null,null,null,null,null,null,580]
[18,"ALOBRAS",null,null,null,null,null,null,null,null,null,null,null,1100,580]
[19,"ALPEÑES",null,null,null,null,null,null,null,null,null,null,null,null,550]
[20,"ALLEPUZ",null,null,null,null,null,null,null,null,null,null,null,null,550]
[21,"ALLOZA",null,null,null,2300,null,9000,9100,10800,null,null,null,null,550]
[22,"ALLUEVA",null,null,null,null,null,null,null,null,null,null,null,null,580]
[23,"ANADÓN",null,null,null,null,null,null,null,null,null,null,null,null,580]
[24,"ANDORRA",null,null,null,2300,null,9000,9100,11200,9100,null,null,null,580]
[25,"ARCOS DE LAS SALINAS",2200,null,null,null,null,7000,null,null,null,null,null,1050,500]
[26,"ARENS DE LLEDÓ",null,null,null,2700,null,null,null,null,9100,null,null,null,550]
[27,"ARGENTE",null,null,null,null,null,null,null,null,null,null,null,null,550]
[28,"ARIÑO",null,null,null,2250,null,9000,null,10300,null,null,null,null,580]
[29,"AZAILA",null,null,null,null,null,null,null,null,8000,null,null,null,550]
[30,"BADENAS",null,null,null,null,null,null,null,null,null,null,null,null,550]
[31,"BÁGUENA",3400,null,null,3000,null,9000,null,null,6500,null,null,750,550]
[32,"BAÑÓN",null,null,null,null,null,null,null,null,null,null,null,null,550]
[33,"BARRACHINA",null,null,null,null,null,7000,null,null,null,null,null,null,550]
[34,"BEA",null,null,null,null,null,null,null,null,null,null,null,null,600]
[35,"BECEITE",null,null,null,2300,null,null,null,null,null,null,null,null,600]
[36,"BELMONTE DE SAN JOSÉ",null,null,null,2300,null,null,null,null,null,null,null,null,600]
[37,"BELLO",null,null,null,null,7450,null,null,null,null,200,200,null,550]
[38,"BERGE",null,null,null,2250,null,9000,9000,12800,8000,null,null,null,550]
[39,"BEZAS",null,null,null,null,null,null,null,null,null,null,null,1100,580]
[40,"BLANCAS",null,null,null,null,7450,null,null,null,null,200,200,null,550]
[41,"BLESA",null,null,null,2250,null,null,null,null,null,null,null,null,580]
[42,"BORDÓN",null,null,null,2100,null,6500,null,9100,null,null,null,null,580]
[43,"BRONCHALES",null,null,null,null,null,null,null,null,null,null,null,1300,580]
[44,"BUEÑA",null,null,null,null,null,null,null,null,null,null,null,null,500]
[45,"BURBÁGUENA",3400,null,null,3000,null,9000,null,null,6500,null,null,750,550]
[46,"CABRA DE MORA",null,null,null,null,null,null,null,null,null,null,null,null,580]
[47,"CALACEITE",null,null,null,3000,null,null,null,null,8800,null,null,null,550]
[48,"CALAMOCHA",3500,null,null,3000,null,10400,null,null,7800,null,null,850,580]
[49,"CALANDA",null,null,null,3000,null,null,null,null,9300,null,null,null,550]
[50,"CALOMARDE",null,null,null,null,null,null,null,null,null,null,null,1100,580]
[51,"CAMAÑAS",null,null,null,null,null,null,null,null,null,null,null,null,550]
[52,"CAMARENA DE LA SIERRA",null,null,null,null,null,null,null,null,null,null,null,1100,550]
[53,"CAMARILLAS",null,null,null,null,null,6000,null,null,null,null,null,null,550]
[54,"CAMINREAL",3200,null,null,null,null,null,null,null,null,null,null,null,580]
[55,"CANTAVIEJA",null,null,null,null,null,null,null,null,null,null,null,null,580]
[56,"CAÑADA DE BENATANDUZ",null,null,null,null,null,null,null,null,null,null,null,null,580]
[57,"LA CAÑADA DE VERICH",null,null,null,2300,null,null,null,null,null,null,null,null,550]
[58,"CAÑADA VELLIDA",null,null,null,null,null,null,null,null,null,null,null,null,580]
[59,"CAÑIZAR DEL OLIVAR",null,null,null,2200,null,6500,null,8000,null,null,null,null,550]
[60,"CASCANTE DEL RIO",1900,null,null,null,null,6000,null,null,null,null,null,null,550]
[61,"CASTEJÓN DE TORNOS",null,null,null,null,null,8100,null,null,null,null,null,null,580]
[62,"CASTEL DE CABRA",null,null,null,null,null,7250,null,null,null,null,null,null,600]
[63,"CASTELNOU",null,null,null,2100,null,9000,null,null,7000,null,null,880,580]
[64,"CASTELSERÁS",null,null,null,2500,null,null,null,null,8150,null,null,null,550]
[65,"EL CASTELLAR",null,null,null,null,null,null,null,null,null,null,null,null,580]
[66,"CASTELLOTE",null,null,null,2150,null,9100,null,9800,7500,null,null,null,600]
[67,"CEDRILLAS",null,null,null,null,null,null,null,null,null,null,null,null,550]
[68,"CELADAS",null,null,null,null,null,null,null,null,null,null,null,null,550]
[69,"CELLA",2500,null,null,null,null,7000,null,null,null,null,null,null,580]
[70,"LA CEROLLERA",null,null,null,2200,null,null,null,null,null,null,null,null,580]
[71,"LA CODOÑERA",null,null,null,2200,null,null,null,null,null,null,null,null,580]
[72,"CORBALÁN",null,null,null,null,null,null,null,null,null,null,null,null,550]
[73,"CORTES DE ARAGÓN",null,null,null,2000,null,6700,null,7800,null,null,null,null,600]
[74,"COSA",null,null,null,null,null,null,null,null,null,null,null,null,600]
[75,"CRETAS",null,null,null,3000,null,null,null,null,10500,null,null,null,550]
[76,"CRIVILLÉN",null,null,null,2200,null,null,null,10000,null,null,null,null,600]
[77,"LA CUBA",null,null,null,2200,null,null,null,null,null,null,null,null,580]
[78,"CUBLA",1900,null,null,null,null,null,null,null,null,null,null,890,550]
[79,"CUCALÓN",null,null,null,null,null,6700,7400,null,null,null,null,null,600]
[80,"EL CUERVO",2300,null,null,2200,null,null,null,null,null,null,null,1100,550]
[81,"CUEVAS DE ALMUDÉN",null,null,null,null,null,null,null,null,null,null,null,null,600]
[82,"CUEVAS LABRADAS",null,null,null,null,null,7500,8800,null,null,null,null,null,600]
[83,"EJULVE",null,null,null,null,null,null,null,null,null,null,null,null,600]
[84,"ESCORIHUELA",null,null,null,null,null,null,null,null,null,null,null,null,600]
[85,"ESCUCHA",null,null,null,null,null,null,null,null,null,null,null,null,580]
[86,"ESTERCUEL",null,null,null,2100,null,6000,null,7500,null,null,null,null,580]
[87,"FERRERUELA DE HUERVA",null,null,null,null,null,7000,null,null,null,null,null,950,580]
[88,"FONFRIA",null,null,null,null,null,null,null,null,null,null,null,null,600]
[89,"FORMICHE ALTO",null,null,null,null,null,6700,null,null,null,null,null,null,580]
[90,"FORNOLES",null,null,null,2300,null,null,null,null,8500,null,null,null,550]
[91,"FORTANETE",null,null,null,null,null,null,null,null,null,null,null,null,550]
[92,"FOZ-CALANDA",null,null,null,2300,null,null,null,null,8000,null,null,null,550]
[93,"LA FRESNEDA",null,null,null,2300,null,null,null,null,9200,null,null,null,550]
[94,"FRIAS DE ALBARRACÍN",null,null,null,null,null,null,null,null,null,null,null,1250,580]
[95,"FUENFERRADA",null,null,null,null,null,6100,null,null,null,null,null,null,600]
[96,"FUENTES CALIENTES",null,null,null,null,null,null,null,null,null,null,null,null,600]
[97,"FUENTES CLARAS",2900,null,null,null,null,null,null,null,null,null,null,null,580]
[98,"FUENTES DE RUBIELOS",null,null,null,null,null,null,null,null,null,null,null,null,580]
[99,"FUENTESPALDA",null,null,null,2600,null,null,null,null,null,null,null,null,580]
[100,"GALVE",null,null,null,null,null,null,null,null,null,null,null,null,580]
[101,"GARGALLO",null,null,null,2000,null,7500,null,10800,null,null,null,null,600]
[102,"GEA DE ALBARRACÍN",null,null,null,null,null,7500,null,null,null,null,null,1100,550]
[103,"LA GINEBROSA",null,null,null,2200,null,null,null,null,9000,null,null,null,600]
[104,"GRIEGOS",null,null,null,null,null,null,null,null,null,null,null,1200,580]
[105,"GUADALAVIAR",null,null,null,null,null,null,null,null,null,null,null,1200,580]
[106,"GUDAR",null,null,null,null,null,null,null,null,null,null,null,null,580]
[107,"HIJAR",null,null,null,2400,null,10000,11600,null,10500,null,null,1000,550]
[108,"HINOJOSA DE JARQUE",null,null,null,null,null,null,null,null,null,null,null,null,600]
[109,"LA HOZ DE LA VIEJA",null,null,null,2000,null,6700,null,8200,null,null,null,null,600]
[110,"HUESA DEL COMÚN",null,null,null,2000,null,6700,null,null,null,null,null,null,600]
[111,"LA IGLESUELA DEL CID",null,null,null,null,null,null,null,null,null,null,null,null,580]
[112,"JABALOYAS",null,null,null,null,null,null,null,null,null,null,null,950,580]
[113,"JARQUE DE LA VAL",null,null,null,null,null,6700,null,null,null,null,null,null,600]
[114,"JATIEL",null,null,null,2000,null,8500,null,null,null,null,null,900,580]
[115,"JORCAS",null,null,null,null,null,null,null,null,null,null,null,null,550]
[116,"JOSA",null,null,null,2000,null,6000,7400,7400,6500,null,null,null,600]
[117,"LAGUERUELA",null,null,null,null,null,7000,null,null,null,null,null,null,600]
[118,"LANZUELA",null,null,null,null,null,null,null,null,null,null,null,null,600]
[119,"LIBROS",2200,null,null,null,null,7000,null,null,null,null,null,null,550]
[120,"LIDÓN",null,null,null,null,null,null,null,null,null,null,null,null,550]
[121,"LINARES DE MORA",null,null,null,null,null,null,null,null,null,null,null,null,580]
[122,"LOSCOS",null,null,null,2100,null,null,null,null,null,null,null,null,580]
[123,"LLEDÓ",null,null,null,2600,null,null,null,null,null,null,null,null,600]
[124,"MAICAS",null,null,null,null,null,null,null,null,null,null,null,null,600]
[125,"MANZANERA",null,null,null,null,null,null,null,null,null,null,null,null,600]
[126,"MARTÍN DEL RIO",null,null,null,null,null,null,null,null,null,null,null,null,600]
[127,"MAS DE LAS MATAS",null,null,null,2400,null,null,null,null,null,null,null,null,550]
[128,"LA MATA DE LOS OLMOS",null,null,null,2100,null,null,null,9400,null,null,null,null,600]
[129,"MAZALEÓN",null,null,null,2500,null,null,null,null,10000,null,null,null,550]
[130,"MEZQUITA DE JARQUE",null,null,null,null,null,null,null,null,null,null,null,null,600]
[131,"MIRAMBEL",null,null,null,null,null,6700,null,null,null,null,null,null,580]
[132,"MIRAVETE DE LA SIERRA",null,null,null,null,null,null,null,null,null,null,null,null,580]
[133,"MOLINOS",null,null,null,null,null,9000,8700,9900,8000,null,null,null,600]
[134,"MONFORTE DE MOYUELA",null,null,null,null,null,7300,null,null,null,null,null,null,580]
[135,"MONREAL DEL CAMPO",3000,null,null,null,null,7800,null,null,null,null,null,870,580]
[136,"MONROYO",null,null,null,2500,null,null,null,null,8100,null,null,null,550]
[137,"MONTALBÁN",null,null,null,null,null,7800,null,7900,null,null,null,null,550]
[138,"MONTEAGUDO DEL CASTILLO ",null,null,null,null,null,null,null,null,null,null,null,null,600]
[139,"MONTERDE DE ALBARRACÍN",null,null,null,null,null,null,null,null,null,null,null,1100,580]
[140,"MORA DE RUBIELOS",2800,null,null,null,null,null,8700,null,null,null,null,1100,600]
[141,"MOSCARDÓN",null,null,null,null,null,null,null,null,null,null,null,1200,580]
[142,"MOSQUERUELA",null,null,null,null,null,null,null,null,null,null,null,null,600]
[143,"MUNIESA",null,null,null,2500,null,null,8000,null,7000,null,null,null,600]
[144,"NOGUERA DE ALBARRACÍN",null,null,null,null,null,6000,null,null,null,null,null,1200,580]
[145,"NOGUERAS",null,null,null,null,null,null,null,null,null,null,null,null,580]
[146,"NOGUERUELAS",null,null,null,null,null,null,null,null,null,null,null,null,580]
[147,"OBÓN",null,null,null,2200,null,6000,null,7700,null,null,null,null,600]
[148,"ODÓN",3000,null,null,null,7450,null,null,null,null,200,200,null,550]
[149,"OJOS NEGROS",2500,null,null,2100,7000,null,null,null,null,200,200,null,580]
[150,"OLBA",null,null,null,2000,null,6500,null,5800,null,null,null,null,600]
[151,"OLIETE",null,null,null,2000,null,9000,null,9400,7200,null,null,null,600]
[152,"LOS OLMOS",null,null,null,null,null,null,null,9400,7200,null,null,null,600]
[153,"ORIHUELA DEL TREMEDAL",null,null,null,null,null,null,null,null,null,null,null,1400,550]
[154,"ORRIOS",null,null,null,null,null,null,null,null,null,null,null,null,600]
[155,"PALOMAR DE ARROYOS",null,null,null,null,null,null,null,null,null,null,null,null,580]
[156,"PANCRUDO",null,null,null,null,null,null,null,null,null,null,null,null,600]
[157,"LAS PARRAS DE CASTELLOTE",null,null,null,2000,null,null,null,null,null,null,null,null,600]
[158,"PEÑARROYA DE TASTAVINS",null,null,null,2600,null,null,null,null,null,null,null,null,580]
[159,"PERACENSE",null,null,null,null,null,null,null,null,null,null,null,null,580]
[160,"PERALEJOS",null,null,null,null,null,null,null,null,null,null,null,null,600]
[161,"PERALES DE ALFAMBRA",null,null,null,null,null,8300,null,null,null,null,null,null,500]
[162,"PITARQUE",null,null,null,null,null,6000,null,null,null,null,null,null,580]
[163,"PLOU",null,null,null,2100,null,6600,null,7500,null,null,null,null,580]
[164,"EL POBO",null,null,null,null,null,null,6500,null,null,null,null,null,550]
[165,"LA PORTELLADA",null,null,null,2300,null,null,null,null,null,null,null,null,550]
[166,"POZONDÓN",null,null,null,null,null,null,null,null,null,null,null,null,580]
[167,"POZUEL DEL CAMPO",2200,null,null,null,5700,null,null,null,null,200,200,680,550]
[168,"LA PUEBLA DE HIJAR",null,null,null,null,null,9000,10400,null,8200,null,null,900,600]
[169,"LA PUEBLA DE VALVERDE",2600,null,null,null,null,null,null,null,null,null,null,1100,600]
[170,"PUERTOMINGALVO",null,null,null,null,null,null,null,null,null,null,null,null,580]
[171,"RAFALES",null,null,null,2400,null,null,null,null,7500,null,null,null,600]
[172,"RILLO",null,null,null,null,null,null,null,null,null,null,null,null,600]
[173,"RIODEVA",null,null,null,2200,null,null,null,null,null,null,null,900,550]
[174,"RÓDENAS",null,null,null,null,null,null,null,null,null,null,null,null,580]
[175,"ROYUELA",null,null,null,null,null,6200,null,null,null,null,null,1250,580]
[176,"RUBIALES",null,null,null,null,null,null,null,null,null,null,null,1050,580]
[177,"RUBIELOS DE LA CERIDA",null,null,null,null,null,null,null,null,null,null,null,null,550]
[178,"RUBIELOS DE MORA",null,null,null,2300,null,null,8900,null,null,null,null,null,600]
[179,"SALCEDILLO",null,null,null,null,null,null,null,null,null,null,null,null,600]
[180,"SALDÓN",null,null,null,null,null,null,null,null,null,null,null,1050,580]
[181,"SAMPER DE CALANDA",null,null,null,2100,null,10000,10000,null,8600,null,null,null,580]
[182,"SAN AGUSTÍN",null,null,null,null,null,5400,null,null,null,null,null,null,580]
[183,"SAN MARTÍN DEL RÍO",2700,null,null,2700,null,9000,null,null,6500,null,null,850,550]
[184,"SANTA CRUZ DE NOGUERAS",null,null,null,2100,null,null,null,null,null,null,null,null,580]
[185,"SANTA EULALIA",null,null,null,null,null,null,null,null,null,null,null,null,580]
[186,"SARRIÓN",2700,null,null,null,null,9000,null,null,null,null,null,null,550]
[187,"SEGURA DE BAÑOS",null,null,null,2200,null,null,null,null,null,null,null,null,600]
[188,"SENO",null,null,null,2100,null,9000,null,11700,6500,null,null,null,500]
[189,"SINGRA",null,null,null,null,null,null,null,null,null,null,null,null,580]
[190,"TERRIENTE",null,null,null,null,null,null,null,null,null,null,null,1050,580]
[191,"TERUEL",2800,null,null,2500,null,11500,null,null,null,null,null,1150,550]
[192,"TORIL Y MASEGOSO",null,null,null,null,null,null,null,null,null,null,null,1050,580]
[193,"TORMÓN",null,null,null,null,null,null,null,null,null,null,null,1050,580]
[194,"TORNOS",2700,null,null,null,7450,null,null,null,null,200,200,900,550]
[195,"TORRALBA DE LOS SISONES",2700,null,null,null,7450,null,null,null,null,200,200,900,550]
[196,"TORRECILLA DE ALCAÑIZ",null,null,null,2700,null,null,null,null,8700,null,null,null,580]
[197,"TORRECILLA DEL REBOLLAR",null,null,null,null,null,null,null,null,null,null,null,null,600]
[198,"TORRE DE ARCAS",null,null,null,2200,null,null,null,null,null,null,null,null,600]
[199,"TORRE DE LAS ARCAS",null,null,null,null,null,6000,null,6500,null,null,null,null,580]
[200,"TORRE DEL COMPTE",null,null,null,2300,null,null,null,null,8300,null,null,null,550]
[201,"TORRELACARCEL",2100,null,null,null,null,null,null,null,null,null,null,null,550]
[202,"TORRE LOS NEGROS",null,null,null,null,null,null,null,null,null,null,null,null,580]
[203,"TORREMOCHA DE JILOCA",null,null,null,null,null,null,null,null,null,null,null,null,550]
[204,"TORRES DE ALBARRACÍN",null,null,null,null,null,6000,null,null,null,null,null,900,550]
[205,"TORREVELILLA",null,null,null,2300,null,null,null,null,null,null,null,null,550]
[206,"TORRIJAS",null,null,null,null,null,6500,null,null,null,null,null,900,500]
[207,"TORRIJO DEL CAMPO",null,null,null,null,null,7500,null,null,null,null,null,800,550]
[208,"TRAMACASTIEL",2200,null,null,2200,null,7500,null,null,null,null,null,900,550]
[209,"TRAMACASTILLA",null,null,null,null,null,6000,null,null,null,null,null,1000,580]
[210,"TRONCHÓN",null,null,null,null,null,6000,null,null,null,null,null,null,580]
[211,"URREA DE GAÉN",null,null,null,2400,null,10000,10400,null,8500,null,null,1000,550]
[212,"UTRILLAS",null,null,null,null,null,7200,null,null,null,null,null,null,580]
[213,"VALACLOCHE",null,null,null,null,null,7600,null,null,null,null,null,900,550]
[214,"VALBONA",1900,null,null,null,null,null,null,null,null,null,null,1050,600]
[215,"VALDEALGORFA",null,null,null,3000,null,null,null,null,9500,null,null,null,550]
[216,"VALDECUENCA",null,null,null,null,null,null,null,null,null,null,null,1000,580]
[217,"VALDELINARES",null,null,null,null,null,null,null,null,null,null,null,null,600]
[218,"VALDELTORMO",null,null,null,3000,null,null,null,null,10000,null,null,null,550]
[219,"VALDERROBRES",null,null,null,3100,null,null,null,null,10000,null,null,null,550]
[220,"VALJUNQUERA",null,null,null,3100,null,null,null,null,9500,null,null,null,550]
[221,"EL VALLECILLO",null,null,null,null,null,null,null,null,null,null,null,1000,580]
[222,"VEGUILLAS DE LA SIERRA",null,null,null,null,null,null,null,null,null,null,null,1000,580]
[223,"VILLAFRANCA DEL CAMPO",null,null,null,null,null,null,null,null,null,null,null,null,580]
[224,"VILLAHERMOSA DEL CAMPO",null,null,null,2000,null,6000,null,null,null,null,null,null,550]
[225,"VILLANUEVA DEL REBOLLAR DE LA SIERRA",null,null,null,null,null,null,null,null,null,null,null,null,600]
[226,"VILLAR DEL COBO",null,null,null,null,null,null,null,null,null,null,null,1300,580]
[227,"VILLAR DEL SALZ",null,null,null,null,5000,null,null,null,null,200,200,null,580]
[228,"VILLARLUENGO",null,null,null,null,null,null,null,null,null,null,null,null,600]
[229,"VILLARQUEMADO",2500,null,null,null,null,null,null,null,null,null,null,null,580]
[230,"VILLARROYA DE LOS PINARES",null,null,null,null,null,null,null,null,null,null,null,null,580]
[231,"VILLASTAR",null,null,null,null,null,9600,null,null,null,null,null,1150,580]
[232,"VILLEL",2400,null,null,2000,null,8200,9500,null,null,null,null,1150,580]
[233,"VINACEITE",null,null,null,2100,null,null,null,null,7000,null,null,null,580]
[234,"VISIEDO",null,null,null,null,null,null,null,null,null,null,null,null,500]
[235,"VIVEL DEL RIO MARTÍN",null,null,null,null,null,8300,null,null,null,null,null,null,600]
[236,"ZOMA (LA)",null,null,null,null,null,7000,null,null,null,null,null,null,550]

{"sheet":"VALORES_HU","index":2,"n_rows":207,"n_cols":20,"rows_kept":207,"cut":false,"hidden":true,"merged":[[0,2,0,18],[1,1,1,18],[3,1,4,1],[3,2,3,6]]}
[null,"VALORES","Provincia de Huesca"]
[null,"VER LAS NORMAS DE APLICACIÓN DE VALORES MINIMOS INFORMATIVOS"]
[null,2025,"Precios aplicables a fincas rústicas en  Euros por Hectarea"]
[null,"PUEBLOS","Secanos",null,null,null,null,"Regadíos",null,null,null,null,null,null,"No cultivables"]
[null,null,"AM","C","O","V","PD","CR","FR","HR","PR","AR","OR","VR","E","MB","MT","MM","RI"]
[1,"ABIEGO","  ",null,"  ","  ",5500,null,14500,null,null,12200,11900,15000,"  ","  ",600,1700,1100,1]
[2,"ABIZANDA",5500,null,5300,7200,"  ",null,14500,null,null,10100,9900,12900,"  ","  ",400,"  ",900]
[3,"ADAHUESCA","  ",null,"  ","  ",5500,null,14500,null,null,12200,11900,15000,"  ","  ",600,1700,1100]
[4,"AGUERO",4600,null,5500,6300,"  ",null,14500,null,null,12200,11900,15000,"  ","  ",400,"  ",800]
[5,"AINSA-SOBRARBE",5800,null,5500,7500,"  ",null,14500,null,null,12300,12000,15100,"  ","  ",500,"  ",1000]
[6,"AISA",5000,null,4600,6600,"  ",null,14500,null,null,10100,9900,12900,"  ","  ",400,"  ",800]
[7,"ALBALATE DE CINCA",3400,null,"  ",5100,2300,null,"  ",null,null,14500,14200,17300,200,200,200,800,600]
[8,"ALBALATILLO",3200,null,3000,4800,2100,null,20800,null,null,15600,15400,18400,200,200,200,700,400]
[9,"ALBELDA",5500,null,"  ",7200,4400,null,"  ",null,null,16800,16600,19600,400,400,400,1300,900]
[10,"ALBERO ALTO","  ",null,"  ","  ",5100,null,14500,null,null,15600,15400,18400,"  ","  ",500,1500,1100]
[11,"ALBERO BAJO",5700,null,5500,7400,4600,null,14500,null,null,15600,15400,18400,500,500,500,1400,1000]
[12,"ALBERUELA DE TUBO",3600,null,3400,5300,2500,null,20800,null,null,15600,15400,18400,300,300,300,800,600]
[13,"ALCALA DE GURREA","  ",null,"  ","  ",4400,null,14500,null,null,13300,13100,16100,"  ","  ",400,1300,900]
[14,"ALCALA DEL OBISPO","  ",null,"  ","  ",5300,null,14500,null,null,13300,13100,16100,"  ","  ",500,1700,1100]
[15,"ALCAMPELL",5500,null,"  ",7200,4400,null,"  ",null,null,16800,16600,19600,400,400,400,1300,900]
[16,"ALCOLEA DE CINCA",3400,null,"  ",5100,2300,null,"  ",null,null,14500,14200,17300,200,200,200,800,600]
[17,"ALCUBIERRE",3200,null,3000,4800,2100,null,20800,null,null,14500,14200,17300,200,200,200,700,400]
[18,"ALERRE","  ",null,"  ","  ",5800,null,14500,null,null,12200,11900,15000,"  ","  ",600,1800,1200]
[19,"ALFANTEGA",5000,null,"  ",6600,3900,null,"  ",null,null,14500,14200,17300,400,400,400,1200,800]
[20,"ALMUDEVAR","  ",null,"  ","  ",4800,null,14500,null,null,15600,15400,18400,"  ","  ",500,1500,1000]
[21,"ALMUNIA DE SAN JUAN",5500,null,"  ",7200,4400,null,"  ",null,null,16800,16600,19600,400,400,400,1300,900]
[22,"ALMUNIENTE",4100,null,3700,5700,3000,null,14500,null,null,14500,14200,17300,300,300,300,900,700]
[23,"ALQUEZAR","  ",null,"  ","  ",3500,null,14500,null,null,12200,11900,15000,"  ","  ",400,1100,800]
[24,"ALTORRICON",5000,null,"  ",6600,3900,null,"  ",null,null,16800,16600,19600,400,400,400,1200,800]
[25,"ANGUES","  ",null,"  ","  ",5300,null,14500,null,null,12200,11900,15000,"  ","  ",500,1700,1100]
[26,"ANSO",5000,null,4600,6600,"  ",null,14500,null,null,10100,9900,12900,"  ","  ",400,"  ",800]
[27,"ANTILLON","  ",null,"  ","  ",5300,null,14500,null,null,12200,11900,15000,"  ","  ",500,1700,1100]
[28,"CALDEARENAS",5300,null,5000,6900,"  ",null,14500,null,null,11200,11000,14000,"  ","  ",400,"  ",900]
[29,"ARAGUES DEL PUERTO",5000,null,4600,6600,"  ",null,14500,null,null,10100,9900,12900,"  ","  ",400,"  ",800]
[30,"AREN",4600,null,4400,6300,"  ",null,14500,null,null,11200,11000,14000,"  ","  ",400,"  ",800]
[31,"ARGAVIESO","  ",null,"  ","  ",5300,null,14500,null,null,12200,11900,15000,"  ","  ",500,1700,1100]
[32,"ARGUIS",4600,null,4300,6300,"  ",null,14500,null,null,11000,10700,13800,"  ","  ",400,"  ",800]
[33,"AYERBE","  ",null,"  ","  ",5300,null,14500,null,null,12200,11900,15000,"  ","  ",500,1700,1100]
[34,"AZANUY-ALINS","  ",null,"  ","  ",4400,null,20800,null,null,12200,11900,15000,"  ","  ",400,1300,900]
[35,"AZARA","  ",null,"  ","  ",5100,null,14500,null,null,12200,11900,15000,"  ","  ",500,1500,1100]
[36,"AZLOR","  ",null,"  ","  ",5100,null,14500,null,null,12200,11900,15000,"  ","  ",500,1500,1100]
[37,"BAELLS","  ",null,"  ","  ",4200,null,20800,null,null,12200,11900,15000,"  ","  ",400,1300,900]
[38,"BAILO",5300,null,5000,6900,"  ",null,14500,null,null,11200,11000,14000,"  ","  ",400,"  ",900]
[39,"BALDELLOU","  ",null,"  ","  ",4200,null,20800,null,null,12200,11900,15000,"  ","  ",400,1300,900]
[40,"BALLOBAR",3200,null,3000,4800,2100,null,20800,null,null,15600,15400,18400,200,200,200,700,400]
[41,"BANASTAS","  ",null,"  ","  ",5800,null,14500,null,null,12200,11900,15000,"  ","  ",600,1800,1200]
[42,"BARBASTRO","  ",null,"  ","  ",5100,null,14500,null,null,15600,15400,18400,"  ","  ",500,1500,1100]
[43,"BARBUES",5300,null,5100,6900,4200,null,14500,null,null,14500,14200,17300,400,400,400,1300,900]
[44,"BARBUÑALES","  ",null,"  ","  ",4600,null,14500,null,null,12200,11900,15000,"  ","  ",500,1400,1000]
[45,"BARCABO",4600,null,5000,6300,"  ",null,14500,null,null,11000,10700,13800,"  ","  ",400,"  ",800]
[46,"BELVER",3400,null,3200,5100,2300,null,"  ",null,null,15600,15400,18400,200,200,200,800,600]
[47,"BENABARRE","  ",null,"  ","  ",4700,null,14500,null,null,11200,11000,14000,"  ","  ",500,1400,1000]
[48,"BENASQUE",4600,null,4400,6300,"  ",null,14500,null,null,10100,9900,12900,"  ","  ",400,"  ",800]
[49,"BERANUY",4600,null,4400,6300,"  ",null,14500,null,null,10100,9900,12900,"  ","  ",400,"  ",800]
[50,"BERBEGAL","  ",null,"  ","  ",4600,null,14500,null,null,15600,15400,18400,"  ","  ",500,1400,1000]
[51,"CANAL DE BERDUN",5800,null,5500,7500,"  ",null,14500,null,null,11200,11000,14000,"  ","  ",500,"  ",1000]
[52,"BIELSA",4600,null,4400,6300,"  ",null,14500,null,null,10100,9900,12900,"  ","  ",400,"  ",800]
[53,"BIERGE","  ",null,"  ","  ",5500,null,14500,null,null,12200,11900,15000,"  ","  ",600,1700,1100]
[54,"BIESCAS",5300,null,5000,6900,"  ",null,14500,null,null,10100,9900,12900,"  ","  ",400,"  ",900]
[55,"BINACED",5000,null,"  ",6600,3900,null,"  ",null,null,16800,16600,19600,400,400,400,1200,800]
[56,"BINEFAR",5300,null,"  ",6900,4200,null,"  ",null,null,16800,16600,19600,400,400,400,1300,900]
[57,"BISAURRI",4600,null,4400,6300,"  ",null,14500,null,null,10100,9900,12900,"  ","  ",400,"  ",800]
[58,"BISCARRUES","  ",null,"  ","  ",5300,null,14500,null,null,14500,14200,17300,"  ","  ",500,1700,1100]
[59,"BLECUA Y TORRES","  ",null,"  ","  ",5300,null,14500,null,null,12200,11900,15000,"  ","  ",500,1700,1100]
[60,"LA SOTONERA","  ",null,"  ","  ",5300,null,14500,null,null,12200,11900,15000,"  ","  ",500,1700,1100]
[61,"BOLTAÑA",5800,null,5500,7500,"  ",null,14500,null,null,11200,11000,14000,"  ","  ",500,"  ",1000]
[62,"BONANSA",4600,null,4400,6300,"  ",null,14500,null,null,10100,9900,12900,"  ","  ",400,"  ",800]
[63,"BORAU",5000,null,4600,6600,"  ",null,14500,null,null,10100,9900,12900,"  ","  ",400,"  ",800]
[64,"BROTO",4600,null,4400,6300,"  ",null,14500,null,null,10100,9900,12900,"  ","  ",400,"  ",800]
[65,"CAMPO",4600,null,4400,6300,"  ",null,14500,null,null,10100,9900,12900,"  ","  ",400,"  ",800]
[66,"CAMPORRELLS","  ",null,"  ","  ",4200,null,20800,null,null,12200,11900,15000,"  ","  ",400,1300,900]
[67,"CANDASNOS",3200,null,3000,4800,2100,null,"  ",null,null,15600,15400,18400,200,200,200,700,400]
[68,"CANFRANC",5000,null,4600,6600,"  ",null,14500,null,null,10100,9900,12900,"  ","  ",400,"  ",800]
[69,"CAPDESASO",3500,null,3300,5200,2400,null,20800,null,null,14500,14200,17300,200,200,200,800,600]
[70,"CAPELLA",5800,null,5500,7500,"  ",null,14500,null,null,11200,11000,14000,"  ","  ",500,"  ",1000]
[71,"CASBAS DE HUESCA","  ",null,"  ","  ",5800,null,14500,null,null,12200,11900,15000,"  ","  ",600,1800,1200]
[72,"CASTEJON DEL PUENTE",5300,null,"  ",6900,4200,null,"  ",null,null,15600,15400,18400,400,400,400,1300,900]
[73,"CASTEJON DE MONEGROS",3200,null,3000,4800,2100,null,20800,null,null,15600,15400,18400,200,200,200,700,400]
[74,"CASTEJON DE SOS",4600,null,4400,6300,"  ",null,14500,null,null,10100,9900,12900,"  ","  ",400,"  ",800]
[75,"CASTELFLORITE",3500,null,3300,5200,2400,null,20800,null,null,14500,14200,17300,200,200,200,800,600]
[76,"CASTIELLO DE JACA",5500,null,5300,7200,"  ",null,14500,null,null,10100,9900,12900,"  ","  ",400,"  ",900]
[77,"CASTIGALEU",5300,null,5000,6900,"  ",null,14500,null,null,10100,9900,12900,"  ","  ",400,"  ",900]
[78,"CASTILLAZUELO","  ",null,"  ","  ",5100,null,14500,null,null,12200,11900,15000,"  ","  ",500,1500,1100]
[79,"CASTILLONROY","  ",null,"  ","  ",4200,null,20800,null,null,12200,11900,15000,"  ","  ",400,1300,900]
[80,"COLUNGO",4600,null,5000,6300,"  ",null,14500,null,null,11000,10700,13800,"  ","  ",400,"  ",800]
[81,"CHALAMERA",3400,null,3200,5100,2300,null,"  ",null,null,13300,13100,16100,200,200,200,800,600]
[82,"CHIA",4600,null,4400,6300,"  ",null,14500,null,null,10100,9900,12900,"  ","  ",400,"  ",800]
[83,"CHIMILLAS","  ",null,"  ","  ",5800,null,14500,null,null,12200,11900,15000,"  ","  ",600,1800,1200]
[84,"ESPLUS",5000,null,"  ",6600,3900,null,"  ",null,null,16800,16600,19600,400,400,400,1200,800]
[85,"ESTADA",5700,null,5500,7400,"  ",null,14500,null,null,14500,14200,17300,"  ","  ",500,"  ",1000]
[86,"ESTADILLA","  ",null,"  ","  ",4600,null,14500,null,null,15600,15400,18400,"  ","  ",500,1400,1000]
[87,"ESTOPIÑAN DEL CASTILLO","  ",null,"  ","  ",4200,null,14500,null,null,11200,11000,14000,"  ","  ",400,1300,900]
[88,"FAGO",5000,null,4600,6600,"  ",null,14500,null,null,10100,9900,12900,"  ","  ",400,"  ",800]
[89,"FANLO",4600,null,4400,6300,"  ",null,14500,null,null,10100,9900,12900,"  ","  ",400,"  ",800]
[90,"FISCAL",4600,null,4400,6300,"  ",null,14500,null,null,10100,9900,12900,"  ","  ",400,"  ",800]
[91,"FONZ","  ",null,"  ","  ",4600,null,14500,null,null,15600,15400,18400,"  ","  ",500,1400,1000]
[92,"FORADADA DE TOSCAR",4600,null,4400,6300,"  ",null,14500,null,null,11200,11000,14000,"  ","  ",400,"  ",800]
[93,"FRAGA",3400,null,3200,5100,2300,null,"  ",null,null,15600,15400,18400,200,200,200,800,600]
[94,"GISTAIN",4600,null,4400,6300,"  ",null,14500,null,null,10100,9900,12900,"  ","  ",400,"  ",800]
[95,"EL GRADO",5100,null,5500,6700,"  ",null,14500,null,null,14500,14200,17300,"  ","  ",400,"  ",900]
[96,"GRAÑEN",4100,null,3700,5700,3000,null,14500,null,null,14500,14200,17300,300,300,300,900,700]
[97,"GRAUS",5800,null,5500,7500,"  ",null,14500,null,null,12300,12000,15100,"  ","  ",500,"  ",1000]
[98,"GURREA DE GALLEGO","  ",null,3900,5800,3100,null,14500,null,null,"  ",14200,17300,300,300,300,1000,"  "]
[99,"VALLE DE HECHO",5000,null,4600,6600,"  ",null,14500,null,null,10100,9900,12900,"  ","  ",400,"  ",800]
[100,"HOZ Y COSTEAN",5100,null,5500,6700,"  ",null,14500,null,null,12200,11900,15000,"  ","  ",400,"  ",900]
[101,"HOZ DE JACA",5000,null,4600,6600,"  ",null,14500,null,null,10100,9900,12900,"  ","  ",400,"  ",800]
[102,"SANTA MARIA DE DULCIS","  ",null,"  ","  ",5100,null,14500,null,null,12200,11900,15000,"  ","  ",500,1500,1100]
[103,"HUERTO",5000,null,4600,6600,3900,null,14500,null,null,15600,15400,18400,400,400,400,1200,800]
[104,"IBIECA","  ",null,"  ","  ",5300,null,14500,null,null,12200,11900,15000,"  ","  ",500,1700,1100]
[105,"IGRIES","  ",null,"  ","  ",5800,null,14500,null,null,12200,11900,15000,"  ","  ",600,1800,1200]
[106,"ILCHE","  ",null,"  ","  ",4200,null,14500,null,null,14500,14200,17300,"  ","  ",400,1300,900]
[107,"JACA",6700,null,6400,8400,"  ",null,14500,null,null,12300,12000,15100,"  ","  ",600,"  ",1200]
[108,"JASA",5000,null,4600,6600,"  ",null,14500,null,null,10100,9900,12900,"  ","  ",400,"  ",800]
[109,"LABUERDA",5500,null,5300,7200,"  ",null,14500,null,null,11200,11000,14000,"  ","  ",400,"  ",900]
[110,"LALUENGA","  ",null,"  ","  ",4600,null,14500,null,null,15600,15400,18400,"  ","  ",500,1400,1000]
[111,"LALUEZA",3300,null,3100,5000,2200,null,20800,null,null,15600,15400,18400,200,200,200,700,400]
[112,"LANAJA",3200,null,3000,4800,2100,null,20800,null,null,13300,13100,16100,200,200,200,700,400]
[113,"LAPERDIGUERA","  ",null,"  ","  ",4600,null,14500,null,null,15600,15400,18400,"  ","  ",500,1400,1000]
[114,"LASCELLAS-PONZANO","  ",null,"  ","  ",5300,null,14500,null,null,12200,11900,15000,"  ","  ",500,1700,1100]
[115,"LASCUARRE",5300,null,5000,6900,"  ",null,14500,null,null,11200,11000,14000,"  ","  ",400,"  ",900]
[116,"LASPAULES",4600,null,4400,6300,"  ",null,14500,null,null,10100,9900,12900,"  ","  ",400,"  ",800]
[117,"LASPUÑA",4600,null,4400,6300,"  ",null,14500,null,null,10100,9900,12900,"  ","  ",400,"  ",800]
[118,"LOARRE","  ",null,"  ","  ",5300,null,14500,null,null,12200,11900,15000,"  ","  ",500,1700,1100]
[119,"LOPORZANO","  ",null,"  ","  ",5800,null,14500,null,null,12200,11900,15000,"  ","  ",600,1800,1200]
[120,"LOSCORRALES","  ",null,"  ","  ",5300,null,14500,null,null,12200,11900,15000,"  ","  ",500,1700,1100]
[121,"LUPIÑEN-ORTILLA","  ",null,"  ","  ",5300,null,14500,null,null,12200,11900,15000,"  ","  ",500,1700,1100]
[122,"MONESMA Y CAJIGAR",4600,null,4400,6300,"  ",null,14500,null,null,11200,11000,14000,"  ","  ",400,"  ",800]
[123,"MONFLORITE-LASCASAS","  ",null,"  ","  ",5300,null,14500,null,null,14500,14200,17300,"  ","  ",500,1700,1100]
[124,"MONTANUY",4600,null,4400,6300,"  ",null,14500,null,null,10100,9900,12900,"  ","  ",400,"  ",800]
[125,"MONZON",5300,null,"  ",6900,4200,null,"  ",null,null,16800,16600,19600,400,400,400,1300,900]
[126,"NAVAL",5100,null,4700,6700,"  ",null,14500,null,null,12200,11900,15000,"  ","  ",400,"  ",900]
[127,"NOVALES","  ",null,"  ","  ",5300,null,14500,null,null,14500,14200,17300,"  ","  ",500,1700,1100]
[128,"NUENO",6200,null,5900,7800,"  ",null,14500,null,null,12200,11900,15000,"  ","  ",500,"  ",1100]
[129,"OLVENA",5100,null,4700,6700,"  ",null,14500,null,null,13300,13100,16100,"  ","  ",400,"  ",900]
[130,"ONTIÑENA",3200,null,3000,4800,2100,null,20800,null,null,15600,15400,18400,200,200,200,700,400]
[131,"OSSO",3400,null,3200,5100,2300,null,"  ",null,null,15600,15400,18400,200,200,200,800,600]
[132,"PALO",5800,null,5500,7500,"  ",null,14500,null,null,12300,12000,15100,"  ","  ",500,"  ",1000]
[133,"PANTICOSA",5300,null,5000,6900,"  ",null,14500,null,null,10100,9900,12900,"  ","  ",400,"  ",900]
[134,"PEÑALBA",3200,null,3000,4800,2100,null,20800,null,null,15600,15400,18400,200,200,200,700,400]
[135,"PERALTA DE ALCOFEA",5300,null,5000,6900,4200,null,20800,null,null,15600,15400,18400,400,400,400,1300,900]
[136,"PERALTA DE CALASANZ","  ",null,"  ","  ",4400,null,20800,null,null,12200,11900,15000,"  ","  ",400,1300,900]
[137,"PERALTILLA","  ",null,"  ","  ",5100,null,14500,null,null,15600,15400,18400,"  ","  ",500,1500,1100]
[138,"PERARRUA",5300,null,5000,6900,"  ",null,14500,null,null,11200,11000,14000,"  ","  ",400,"  ",900]
[139,"PERTUSA","  ",null,"  ","  ",5300,null,14500,null,null,15600,15400,18400,"  ","  ",500,1700,1100]
[140,"PIRACES","  ",null,"  ","  ",4600,null,14500,null,null,15600,15400,18400,"  ","  ",500,1400,1000]
[141,"PLAN",4600,null,4400,6300,"  ",null,14500,null,null,10100,9900,12900,"  ","  ",400,"  ",800]
[142,"POLEÑINO",3400,null,3200,5100,2300,null,20800,null,null,15600,15400,18400,200,200,200,800,600]
[143,"SAN MIGUEL DEL CINCA",5000,null,"  ",6600,3900,null,"  ",null,null,14500,14200,17300,400,400,400,1200,800]
[144,"POZAN DE VERO","  ",null,"  ","  ",5100,null,14500,null,null,12200,11900,15000,"  ","  ",500,1500,1100]
[145,"LA PUEBLA DE CASTRO",5300,null,5000,6900,"  ",null,14500,null,null,11200,11000,14000,"  ","  ",400,"  ",900]
[146,"PUENTE DE MONTAÑANA",5300,null,5000,6900,"  ",null,14500,null,null,11200,11000,14000,"  ","  ",400,"  ",900]
[147,"PUERTOLAS",4600,null,4400,6300,"  ",null,14500,null,null,10100,9900,12900,"  ","  ",400,"  ",800]
[148,"PUEYO DE ARAGUAS",5500,null,5300,7200,"  ",null,14500,null,null,12300,12000,15100,"  ","  ",400,"  ",900]
[149,"PUEYO DE SANTA CRUZ",5100,null,"  ",6700,4000,null,"  ",null,null,15600,15400,18400,400,400,400,1200,900]
[150,"QUICENA","  ",null,"  ","  ",5800,null,14500,null,null,14500,14200,17300,"  ","  ",600,1800,1200]
[151,"PEÑAS DE RIGLOS",4600,null,5000,6300,"  ",null,14500,null,null,12200,11900,15000,"  ","  ",400,"  ",800]
[152,"ROBRES",3500,null,3200,5200,2400,null,14500,null,null,13300,13100,16100,200,200,200,800,600]
[153,"ISABENA",5300,null,5000,6900,"  ",null,14500,null,null,11200,11000,14000,"  ","  ",400,"  ",900]
[154,"SABIÑANIGO",5800,null,5500,7500,"  ",null,14500,null,null,11200,11000,14000,"  ","  ",500,"  ",1000]
[155,"SAHUN",4600,null,4400,6300,"  ",null,14500,null,null,10100,9900,12900,"  ","  ",400,"  ",800]
[156,"SALAS ALTAS","  ",null,"  ","  ",5100,null,14500,null,null,13300,13100,16100,"  ","  ",500,1500,1100]
[157,"SALAS BAJAS","  ",null,"  ","  ",5100,null,14500,null,null,13300,13100,16100,"  ","  ",500,1500,1100]
[158,"SALILLAS","  ",null,"  ","  ",4600,null,14500,null,null,14500,14200,17300,"  ","  ",500,1400,1000]
[159,"SALLENT DE GALLEGO",5000,null,4600,6600,"  ",null,14500,null,null,10100,9900,12900,"  ","  ",400,"  ",800]
[160,"SAN ESTEBAN DE LITERA",5700,null,"  ",7400,4600,null,"  ",null,null,16800,16600,19600,500,500,500,1400,1000]
[161,"SANGARREN",5700,null,5500,7400,4600,null,14500,null,null,14500,14200,17300,500,500,500,1400,1000]
[162,"SAN JUAN DE PLAN",4600,null,4400,6300,"  ",null,14500,null,null,10100,9900,12900,"  ","  ",400,"  ",800]
[163,"SANTA CILIA",5800,null,5500,7500,"  ",null,14500,null,null,11200,11000,14000,"  ","  ",500,"  ",1000]
[164,"SANTA CRUZ DE LA SEROS",5800,null,5500,7500,"  ",null,14500,null,null,11200,11000,14000,"  ","  ",500,"  ",1000]
[165,"PUENTE LA REINA",5800,null,5500,7500,"  ",null,14500,null,null,11200,11000,14000,"  ","  ",500,"  ",1000]
[166,"SANTA LIESTRA Y SAN QUILEZ",4600,null,4400,6300,"  ",null,14500,null,null,10100,9900,12900,"  ","  ",400,"  ",800]
[167,"SARIÑENA",3400,null,3200,5100,2300,null,20800,null,null,15600,15400,18400,200,200,200,800,600]
[168,"SECASTILLA",5300,null,5000,6900,"  ",null,14500,null,null,11200,11000,14000,"  ","  ",400,"  ",900]
[169,"SEIRA",4600,null,4400,6300,"  ",null,14500,null,null,10100,9900,12900,"  ","  ",400,"  ",800]
[170,"SENA",3200,null,3000,4800,2100,null,20800,null,null,15600,15400,18400,200,200,200,700,400]
[171,"SENES DE ALCUBIERRE",3500,null,3200,5200,2400,null,14500,null,null,13300,13100,16100,200,200,200,800,600]
[172,"SESA","  ",null,"  ","  ",4600,null,14500,null,null,13300,13100,16100,"  ","  ",500,1400,1000]
[173,"SESUE",4600,null,4400,6300,"  ",null,14500,null,null,10100,9900,12900,"  ","  ",400,"  ",800]
[174,"SIETAMO","  ",null,"  ","  ",5800,null,14500,null,null,12200,11900,15000,"  ","  ",600,1800,1200]
[175,"SOPEIRA",4600,null,4400,6300,"  ",null,14500,null,null,10100,9900,12900,"  ","  ",400,"  ",800]
[176,"TAMARITE DE LITERA",5300,null,"  ",6900,4200,null,"  ",null,null,16800,16600,19600,400,400,400,1300,900]
[177,"TARDIENTA",3900,null,3500,5500,2800,null,14500,null,null,13300,13100,16100,300,300,300,900,600]
[178,"TELLA-SIN",4600,null,4400,6300,"  ",null,14500,null,null,10100,9900,12900,"  ","  ",400,"  ",800]
[179,"TIERZ","  ",null,"  ","  ",5800,null,14500,null,null,14500,14200,17300,"  ","  ",600,1800,1200]
[180,"TOLVA",5300,null,5000,6900,"  ",null,14500,null,null,11200,11000,14000,"  ","  ",400,"  ",900]
[181,"TORLA",4600,null,4400,6300,"  ",null,14500,null,null,10100,9900,12900,"  ","  ",400,"  ",800]
[182,"TORRALBA DE ARAGON",3900,null,3500,5500,2800,null,14500,null,null,13300,13100,16100,300,300,300,900,600]
[183,"TORRE LA RIBERA",4600,null,4400,6300,"  ",null,14500,null,null,10100,9900,12900,"  ","  ",400,"  ",800]
[184,"TORRENTE DE CINCA",3400,null,3200,5100,2300,null,"  ",null,null,15600,15400,18400,200,200,200,800,600]
[185,"TORRES DE ALCANADRE","  ",null,"  ","  ",4800,null,14500,null,null,15600,15400,18400,"  ","  ",500,1500,1000]
[186,"TORRES DE BARBUES",5300,null,5100,6900,4200,null,14500,null,null,14500,14200,17300,400,400,400,1300,900]
[187,"TRAMACED",5300,null,5000,6900,4200,null,14500,null,null,15600,15400,18400,400,400,400,1300,900]
[188,"VALFARTA",3200,null,3000,4800,2100,null,20800,null,null,15600,15400,18400,200,200,200,700,400]
[189,"VALLE DE BARDAGI",4600,null,4400,6300,"  ",null,14500,null,null,10100,9900,12900,"  ","  ",400,"  ",800]
[190,"VALLE DE LIERP",4600,null,4400,6300,"  ",null,14500,null,null,10100,9900,12900,"  ","  ",400,"  ",800]
[191,"VELILLA DE CINCA",3400,null,3200,5100,2300,null,"  ",null,null,15600,15400,18400,200,200,200,800,600]
[192,"VIACAMP Y LITERA",4600,null,4400,6300,"  ",null,14500,null,null,10100,9900,12900,"  ","  ",400,"  ",800]
[193,"VICIEN","  ",null,"  ","  ",4600,null,14500,null,null,15600,15400,18400,"  ","  ",500,1400,1000]
[194,"VILLANOVA",4600,null,4400,6300,"  ",null,14500,null,null,10100,9900,12900,"  ","  ",400,"  ",800]
[195,"VILLANUA",5000,null,4600,6600,"  ",null,14500,null,null,10100,9900,12900,"  ","  ",400,"  ",800]
[196,"VILLANUEVA DE SIGENA",3200,null,3000,4800,2100,null,20800,null,null,15600,15400,18400,200,200,200,700,400]
[197,"YEBRA DE BASA",5000,null,4600,6600,"  ",null,14500,null,null,10100,9900,12900,"  ","  ",400,"  ",800]
[198,"YESERO",5000,null,4600,6600,"  ",null,14500,null,null,10100,9900,12900,"  ","  ",400,"  ",800]
[199,"ZAIDIN",3400,null,3200,5100,2300,null,"  ",null,null,15600,15400,18400,200,200,200,800,600]
[200,"LA FUEVA",5800,null,5500,7500,"  ",null,14500,null,null,12300,12000,15100,"  ","  ",500,"  ",1000]
[201,"VENCILLON",5000,null,"  ",6600,3900,null,"  ",null,null,16800,16600,19600,400,400,400,1200,800]
[202,"HUESCA","  ",null,"  ","  ",5800,null,14500,null,null,14500,14200,17300,"  ","  ",600,1800,1200]

{"sheet":"NORMAS","index":3,"n_rows":25,"n_cols":2,"rows_kept":25,"cut":false,"hidden":false,"merged":[[1,1,1,10],[2,1,2,10],[24,1,24,10],[28,1,28,10]]}
[]
[]
[null,"NORMAS DE APLICACIÓN DE LOS VALORES MINIMOS INFORMATIVOS"]
[null,"La Ley 11/2021, de 9 de julio, de medidas de prevención y lucha contra el fraude fiscal y de transposición de la Directiva (EU) 2016/1164, ha introducido"]
[null,"importantes novedades, entre ellas, el denominado “valor de referencia” como concepto determinante de la base imponible en el impuesto de Transmisiones"]
[null,"Patrimoniales y Actos Jurídicos Documentados, en el impuesto de Sucesiones y Donaciones, y en el impuesto sobre el Patrimonio. En el caso de no existir  "]
[null,"el citado valor de referencia a la fecha de devengo, la base imponible será el valor de mercado."]
[]
[]
[null,"Se publican estos valores mínimos informativos a efectos de lo previsto en la RESOLUCIÓN de 21 de diciembre de 2021, del Director General de Tributos, "]
[null,"por la que se dictan instrucciones sobre el suministro de información de valores de bienes inmuebles que vayan a ser objeto de adquisición o transmisión "]
[null,"en el ámbito de la Comunidad Autónoma de Aragón, a los efectos de liquidación de los impuestos de Transmisiones Patrimoniales y Actos Jurídicos "]
[null,"Documentados y de Sucesiones y Donaciones. Ver en esta misma página web."]
[]
[null,"En el caso de que no exista valor de referencia para un bien inmueble concreto puede solicitar una valoración individualizada del mismo solicitando una"]
[null,"Información del valor con carácter previo a su adquisición o transmisión a efectos de los Impuestos de Transmisiones Patrimoniales y Actos"]
[null,"Jurídicos Documentales y de Sucesiones y Donaciones."]
[]
[null,"Estos Informes pueden solicitarse en la Dirección General de Tributos o en las Subdirecciones Provinciales de Huesca y Teruel, preferentemente de forma"]
[null,"telématica."]
[]
[null,"Para más información puede consultarse la siguiente página web: https://www.aragon.es/-/procedimiento-de-valoracion-de-previa-de-bienes-inmuebles"]
[]
[]
[null,"RUSTICA. Año 2025"]

{"sheet":"MANEJO DE LAS TABLAS","index":4,"n_rows":42,"n_cols":4,"rows_kept":42,"cut":false,"hidden":false,"merged":[[0,1,0,5]]}
[null,"MANEJO DE LAS TABLAS"]
[]
[null,"Las tablas vienen ordenadas por provincias"]
[]
[null,"En cada provincia aparecen los Términos Municipales ordenados alfabéticamente"]
[]
[null,"En las tablas aparecen los valores medios de la tierra, en Euros por hectárea (Euros/ha) según los"]
[null,"diferentes tipos de aprovechamiento, identificados con los Códigos del cuadro adjunto."]
[]
[null,"Para obtener el valor de una finca, se busca en la tabla el Término Municipal dentro de la "]
[null,"provincia correspondiente. Se busca el código con arreglo al aprovechamiento de la finca (Labor "]
[null,"secano,  Almendro secano,  etc.) y obtenemos  el precio unitario en Euros/ha. Para obtener el va-"]
[null,"lor total multiplicamos por el número de hectáreas que tenga la finca a valorar. Cuando existan"]
[null,"varios tipos de aprovechamiento se buscarán los correspondientes valores y se multiplicará el "]
[null,"valor de cada tipo por su superficie. Cuando sumamos los resultados parciales obtenemos el valor"]
[null,"total de la finca. Las equivalencias de las unidades de superficie son las siguientes."]
[]
[null,null,"1 Hectárea = 10.000 metros cuadrados"]
[null,null,"1 Área= 100 metros cuadrados"]
[null,null,"1 Centiárea = 1 metro cuadrado"]
[]
[null,null,"Tipo de aprovechamiento","Código"]
[null,null,"Almendro secano","AM"]
[null,null,"Almendro regadio","AR"]
[null,null,"Labor secano","C"]
[null,null,"Labor regadío","CR"]
[null,null,"Erial a pastos","EP"]
[null,null,"Frutales de secano","F"]
[null,null,"Haya","FH"]
[null,null,"Frutales de regadío","FR"]
[null,null,"Huerta regadío","HR"]
[null,null,"Improductivo","I"]
[null,null,"Monte bajo","MB"]
[null,null,"Pinar maderable","MM"]
[null,null,"Matorral","MT"]
[null,null,"Olivos secano","O"]
[null,null,"Olivor regadío","OR"]
[null,null,"Prados","PD"]
[null,null,"Prado regadío","PR"]
[null,null,"Arboles de ribera","RI"]
[null,null,"Viña secano","V"]
[null,null,"Viñedo regadío","VR"]

{"sheet":"HUESCA 2025","index":5,"n_rows":18,"n_cols":17,"rows_kept":18,"cut":false,"hidden":false,"merged":[[1,1,1,16],[2,1,2,16],[3,3,3,16],[4,2,4,6],[4,7,4,11],[4,12,4,16]]}
[]
[null,"Provincia de HUESCA"]
[null,"VER LAS NORMAS DE APLICACIÓN DE VALORES MINIMOS INFORMATIVOS"]
[null,2025,null,"Precios aplicables a fincas rústicas en Euros por hectárea"]
[null,"MUNICIPIO","Secanos",null,null,null,null,"Regadíos",null,null,null,null,"No cultivables"]
[null,null,"AM-F","C","O","V","PD","CR","FR","AR","OR","VR","E","MB","MT","MM","RI"]
[null,"VALORES € /Ha.",{"$f":"IF(VLOOKUP(VALORES_HU!$T$6,TABLA_HU,3)=0,\"\",VLOOKUP(VALORES_HU!$T$6,TABLA_HU,3))","v":"  "},{"$f":"IF(VLOOKUP(VALORES_HU!$T$6,TABLA_HU,4)=0,\"\",VLOOKUP(VALORES_HU!$T$6,TABLA_HU,4))","v":""},{"$f":"IF(VLOOKUP(VALORES_HU!$T$6,TABLA_HU,5)=0,\"\",VLOOKUP(VALORES_HU!$T$6,TABLA_HU,5))","v":"  "},{"$f":"IF(VLOOKUP(VALORES_HU!$T$6,TABLA_HU,6)=0,\"\",VLOOKUP(VALORES_HU!$T$6,TABLA_HU,6))","v":"  "},{"$f":"IF(VLOOKUP(VALORES_HU!$T$6,TABLA_HU,7)=0,\"\",VLOOKUP(VALORES_HU!$T$6,TABLA_HU,7))","v":5500},{"$f":"IF(VLOOKUP(VALORES_HU!$T$6,TABLA_HU,8)=0,\"\",VLOOKUP(VALORES_HU!$T$6,TABLA_HU,8))","v":""},{"$f":"IF(VLOOKUP(VALORES_HU!$T$6,TABLA_HU,9)=0,\"\",VLOOKUP(VALORES_HU!$T$6,TABLA_HU,9))","v":14500},{"$f":"IF(VLOOKUP(VALORES_HU!$T$6,TABLA_HU,12)=0,\"\",VLOOKUP(VALORES_HU!$T$6,TABLA_HU,12))","v":12200},{"$f":"IF(VLOOKUP(VALORES_HU!$T$6,TABLA_HU,13)=0,\"\",VLOOKUP(VALORES_HU!$T$6,TABLA_HU,13))","v":11900},{"$f":"IF(VLOOKUP(VALORES_HU!$T$6,TABLA_HU,14)=0,\"\",VLOOKUP(VALORES_HU!$T$6,TABLA_HU,14))","v":15000},{"$f":"IF(VLOOKUP(VALORES_HU!$T$6,TABLA_HU,15)=0,\"\",VLOOKUP(VALORES_HU!$T$6,TABLA_HU,15))","v":"  "},{"$f":"IF(VLOOKUP(VALORES_HU!$T$6,TABLA_HU,16)=0,\"\",VLOOKUP(VALORES_HU!$T$6,TABLA_HU,16))","v":"  "},{"$f":"IF(VLOOKUP(VALORES_HU!$T$6,TABLA_HU,17)=0,\"\",VLOOKUP(VALORES_HU!$T$6,TABLA_HU,17))","v":600},{"$f":"IF(VLOOKUP(VALORES_HU!$T$6,TABLA_HU,18)=0,\"\",VLOOKUP(VALORES_HU!$T$6,TABLA_HU,18))","v":1700},{"$f":"IF(VLOOKUP(VALORES_HU!$T$6,TABLA_HU,19)=0,\"\",VLOOKUP(VALORES_HU!$T$6,TABLA_HU,19))","v":1100}]
[]
[null,"ACLARACIONES. (SOLO utilizar para fincas SIN Valor de Referencia del Catastro)"]
[null,"PLANTACIONES DE CARRASCAS TRUFERAS (FRONDOSAS MICORRIZADAS), CUALQUIERA QUE SEA SU CALIFICACION EN "]
[null,"CATASTRO (MB, C, AM, etc.). Se valorarán de forma individualizada y de acuerdo con sus características particulares (densidad y año "]
[null,"de plantación, secano o regadío, vallado…)"]
[null,"En las parcelas de regadío equipadas con sistemas de riego automatizado, el valor de labor de regadío es de 18.000 Euros/ha"]
[null,"Parcelas incluidas en Zonas de Interes Nacional, PEBEAS y Regadíos Sociales en transformación, el valor por ha será 2,50 veces el valor   "]
[null,"de secano (TAS) correspondiente de la ATH del IAMIR (Informe Anual del Mercado Inmobiliario Rústico. Sede Electrónica del Catastro)."]
[null,"Para las Referencias Catastrales con calificación RI \"árboles de ribera\", habrá que distinguir: "]
[null,"a.- parcela NO CULTIVADA, se aplica el valor minimo informativo asignado a RI"]
[null,"b.- PLANTACIONES DE CHOPOS. Aplicar el 80% del valor de regadío (TAR)  correspondiente de la ATH del IAMIR antes mencionado."]

{"sheet":"ZARAGOZA 2025","index":6,"n_rows":18,"n_cols":16,"rows_kept":18,"cut":false,"hidden":false,"merged":[[4,2,4,6],[4,7,4,11],[4,12,4,15],[1,1,1,15],[2,1,2,15],[3,3,3,15]]}
[]
[null,"Provincia de ZARAGOZA"]
[null,"VER LAS NORMAS DE APLICACIÓN DE VALORES MINIMOS INFORMATIVOS"]
[null,2025,null,"Precios aplicables a fincas rústicas en Euros por hectárea"]
[null,"MUNICIPIO","Secanos",null,null,null,null,"Regadíos",null,null,null,null,"No cultivables"]
[null,null,"AM-F","C","O","V","PD","CR","FR","AR","OR","VR","EP","MB-MT","MM","RI"]
[null,"VALORES € /Ha.",{"$f":"IF(VLOOKUP(VALORES_ZA!$U$2,TABLA_ZA,3)=0,\"\",VLOOKUP(VALORES_ZA!$U$2,TABLA_ZA,3))","v":""},{"$f":"IF(VLOOKUP(VALORES_ZA!$U$2,TABLA_ZA,4)=0,\"\",VLOOKUP(VALORES_ZA!$U$2,TABLA_ZA,4))","v":""},{"$f":"IF(VLOOKUP(VALORES_ZA!$U$2,TABLA_ZA,5)=0,\"\",VLOOKUP(VALORES_ZA!$U$2,TABLA_ZA,5))","v":""},{"$f":"IF(VLOOKUP(VALORES_ZA!$U$2,TABLA_ZA,6)=0,\"\",VLOOKUP(VALORES_ZA!$U$2,TABLA_ZA,6))","v":""},{"$f":"IF(VLOOKUP(VALORES_ZA!$U$2,TABLA_ZA,7)=0,\"\",VLOOKUP(VALORES_ZA!$U$2,TABLA_ZA,7))","v":""},{"$f":"IF(VLOOKUP(VALORES_ZA!$U$2,TABLA_ZA,8)=0,\"\",VLOOKUP(VALORES_ZA!$U$2,TABLA_ZA,8))","v":""},{"$f":"IF(VLOOKUP(VALORES_ZA!$U$2,TABLA_ZA,9)=0,\"\",VLOOKUP(VALORES_ZA!$U$2,TABLA_ZA,9))","v":""},{"$f":"IF(VLOOKUP(VALORES_ZA!$U$2,TABLA_ZA,10)=0,\"\",VLOOKUP(VALORES_ZA!$U$2,TABLA_ZA,10))","v":""},{"$f":"IF(VLOOKUP(VALORES_ZA!$U$2,TABLA_ZA,11)=0,\"\",VLOOKUP(VALORES_ZA!$U$2,TABLA_ZA,11))","v":""},{"$f":"IF(VLOOKUP(VALORES_ZA!$U$2,TABLA_ZA,12)=0,\"\",VLOOKUP(VALORES_ZA!$U$2,TABLA_ZA,12))","v":""},{"$f":"IF(VLOOKUP(VALORES_ZA!$U$2,TABLA_ZA,14)=0,\"\",VLOOKUP(VALORES_ZA!$U$2,TABLA_ZA,14))","v":""},{"$f":"IF(VLOOKUP(VALORES_ZA!$U$2,TABLA_ZA,15)=0,\"\",VLOOKUP(VALORES_ZA!$U$2,TABLA_ZA,15))","v":""},{"$f":"IF(VLOOKUP(VALORES_ZA!$U$2,TABLA_ZA,16)=0,\"\",VLOOKUP(VALORES_ZA!$U$2,TABLA_ZA,16))","v":1000},{"$f":"IF(VLOOKUP(VALORES_ZA!$U$2,TABLA_ZA,17)=0,\"\",VLOOKUP(VALORES_ZA!$U$2,TABLA_ZA,17))","v":750}]
[]
[null,"ACLARACIONES. (SOLO utilizar para fincas SIN Valor de Referencia del Catastro)"]
[null,"PLANTACIONES DE CARRASCAS TRUFERAS (FRONDOSAS MICORRIZADAS), CUALQUIERA QUE SEA SU CALIFICACION EN "]
[null,"CATASTRO (MB, C, AM, etc.). Se valorarán de forma individualizada y de acuerdo con sus características particulares (densidad y año "]
[null,"de plantación, secano o regadío, vallado…)"]
[null,"En las parcelas de regadío equipadas con sistemas de riego automatizado, el valor de labor de regadío es de 18.000 Euros/ha"]
[null,"Parcelas incluidas en Zonas de Interes Nacional, PEBEAS y Regadíos Sociales en transformación, el valor por ha será 2,50 veces el valor   "]
[null,"de secano (TAS) correspondiente de la ATH del IAMIR (Informe Anual del Mercado Inmobiliario Rústico. Sede Electrónica del Catastro)."]
[null,"Para las Referencias Catastrales con calificación RI \"árboles de ribera\", habrá que distinguir: "]
[null,"a.- parcela NO CULTIVADA, se aplica el valor minimo informativo asignado a RI"]
[null,"b.- PLANTACIONES DE CHOPOS. Aplicar el 80% del valor de regadío (TAR)  correspondiente de la ATH del IAMIR antes mencionado."]

{"sheet":"TERUEL 2025","index":7,"n_rows":18,"n_cols":15,"rows_kept":18,"cut":false,"hidden":false,"merged":[[1,1,1,14],[2,1,2,14],[3,3,3,14],[4,2,4,5],[4,6,4,10],[4,11,4,14]]}
[]
[null,"Provincia de TERUEL"]
[null,"VER LAS NORMAS DE APLICACIÓN DE VALORES MINIMOS INFORMATIVOS"]
[null,2025,null,"Precios aplicables a fincas rústicas en Euros por hectárea"]
[null,"MUNICIPIO","Secanos",null,null,null,"Regadíos",null,null,null,null,"No cultivables"]
[null,null,"AM-F","C","O","V","CR","FR","AR","OR","VR","EP","MB-MT","MM","RI"]
[null,"VALORES € /Ha.",{"$f":"IF(VLOOKUP(VALORES_TE!$P$5,TABLA_TE,3)=0,\"\",VLOOKUP(VALORES_TE!$P$5,TABLA_TE,3))","v":""},{"$f":"IF(VLOOKUP(VALORES_TE!$P$5,TABLA_TE,4)=0,\"\",VLOOKUP(VALORES_TE!$P$5,TABLA_TE,4))","v":""},{"$f":"IF(VLOOKUP(VALORES_TE!$P$5,TABLA_TE,5)=0,\"\",VLOOKUP(VALORES_TE!$P$5,TABLA_TE,5))","v":""},{"$f":"IF(VLOOKUP(VALORES_TE!$P$5,TABLA_TE,6)=0,\"\",VLOOKUP(VALORES_TE!$P$5,TABLA_TE,6))","v":""},{"$f":"IF(VLOOKUP(VALORES_TE!$P$5,TABLA_TE,7)=0,\"\",VLOOKUP(VALORES_TE!$P$5,TABLA_TE,7))","v":""},{"$f":"IF(VLOOKUP(VALORES_TE!$P$5,TABLA_TE,8)=0,\"\",VLOOKUP(VALORES_TE!$P$5,TABLA_TE,8))","v":""},{"$f":"IF(VLOOKUP(VALORES_TE!$P$5,TABLA_TE,9)=0,\"\",VLOOKUP(VALORES_TE!$P$5,TABLA_TE,9))","v":""},{"$f":"IF(VLOOKUP(VALORES_TE!$P$5,TABLA_TE,10)=0,\"\",VLOOKUP(VALORES_TE!$P$5,TABLA_TE,10))","v":""},{"$f":"IF(VLOOKUP(VALORES_TE!$P$5,TABLA_TE,11)=0,\"\",VLOOKUP(VALORES_TE!$P$5,TABLA_TE,11))","v":""},{"$f":"IF(VLOOKUP(VALORES_TE!$P$5,TABLA_TE,12)=0,\"\",VLOOKUP(VALORES_TE!$P$5,TABLA_TE,12))","v":""},{"$f":"IF(VLOOKUP(VALORES_TE!$P$5,TABLA_TE,13)=0,\"\",VLOOKUP(VALORES_TE!$P$5,TABLA_TE,13))","v":""},{"$f":"IF(VLOOKUP(VALORES_TE!$P$5,TABLA_TE,14)=0,\"\",VLOOKUP(VALORES_TE!$P$5,TABLA_TE,14))","v":""},{"$f":"IF(VLOOKUP(VALORES_TE!$P$5,TABLA_TE,15)=0,\"\",VLOOKUP(VALORES_TE!$P$5,TABLA_TE,15))","v":580}]
[]
[null,"ACLARACIONES. (SOLO utilizar para fincas SIN Valor de Referencia del Catastro)"]
[null,"PLANTACIONES DE CARRASCAS TRUFERAS (FRONDOSAS MICORRIZADAS), CUALQUIERA QUE SEA SU CALIFICACION EN "]
[null,"CATASTRO (MB, C, AM, etc.). Se valorarán de forma individualizada y de acuerdo con sus características particulares (densidad y año "]
[null,"de plantación, secano o regadío, vallado…)"]
[null,"En las parcelas de regadío equipadas con sistemas de riego automatizado, el valor de labor de regadío es de 18.000 Euros/ha"]
[null,"Parcelas incluidas en Zonas de Interes Nacional, PEBEAS y Regadíos Sociales en transformación, el valor por ha será 2,50 veces el valor   "]
[null,"de secano (TAS) correspondiente de la ATH del IAMIR (Informe Anual del Mercado Inmobiliario Rústico. Sede Electrónica del Catastro)."]
[null,"Para las Referencias Catastrales con calificación RI \"árboles de ribera\", habrá que distinguir: "]
[null,"a.- parcela NO CULTIVADA, se aplica el valor minimo informativo asignado a RI"]
[null,"b.- PLANTACIONES DE CHOPOS. Aplicar el 80% del valor de regadío (TAR)  correspondiente de la ATH del IAMIR antes mencionado."]